Workbook

Sheet CONTRIBUENTE
C2: Questo file contiene UNA MACRO (non indispensabile) nel foglio F23. Puoi attivarla anche in un secondo momento, quando
C3: riapri il file. Per utilizzarla assicurati di salvare il file nel formato con macro ATTIVE. Le macro sono COMANDI automatici che completano
C4: le funzionalità di questo strumento, non contengono virus o altro. Qui trovi la spiegazione di Microsoft: | M4: MACRO
C5: Sistema interamente originale. Non necessita di aggiornamenti.
C6: di Marco Piccoli - P. IVA 01151800313
C7: Monfalcone - GO - Tel. 333 46 39 497
P8: Professionista Web di cui alla legge nr. 4/2013
C9: Leggi attentamente questa presentazione, osserva le "Note pratiche" e richiedi liberamente informazioni via mail.
C10: Una copia di questo file è sempre disponibile al sito www.marcopiccoli.it: | J10: Area Download .xlsx / xlsm
C12: Puoi usare questo file per annotare i tuoi F23 di TUTTI i MESI di OGNI ANNO. Al momento il trimestre selezionato è: | T12: DAL - GG/MM - AL
C13: =I86 -> 1° TRIMESTRE | G13: =IF(J140="",IF(E139=1,B136,""),J140) ->  | T13: =IF(I86="",F159,VLOOKUP(I86,C159:G162,4,FALSE)) -> 2024-01-01 | U13: =IF(I86="",G159,VLOOKUP(I86,C159:G162,5,FALSE)) -> 2024-03-31
B14: Questo strumento è liberamente utilizzabile DA TUTTI. Funziona integralmente per OGNI TRIMESTRE di ogni
B15: ANNO. Puoi sbloccarlo in qualsiasi momento per l' INTERO ANNO. I valori che inserisci sono sempre disponibili.
C16: =IF(K68=J144,B127,B126) -> Richiedi via mail il TUO CODICE di PROPRIETA' per EXCEL: | J16: info@marcopiccoli.it
C17: Note pratiche:
C18: USA IL TASTO - TAB - PER MUOVERE IL CURSORE NELLE | J18: USA IL TASTO - Canc - PER RIMUOVERE IL
C19: CELLE LIBERE. TUTTE LE ALTRE SONO BLOCCATE E NON | J19: CONTENUTO DI UNA CELLA. PER MAC USA
C20: TI SERVONO PER IL CORRETTO USO DI QUESTO FILE. | J20: - doppio tasto - NON TAGLIARE LE CELLE.
G22: per OpenOffice non disponibile
C25: Il file contiene 1 Selettore MACRO.
M26: Questo è il sistema
J27: F23 1.6 per Excel .xlsm
C29: =CONCATENATE(J27," è un sistema elettronico UNIVERSALE con il quale puoi creare e memorizzare molteplici modelli in 1 anno ed in più anni, identificandoli con") -> F23 1.6 per Excel .xlsm è un sistema elettronico UNIVERSALE con il quale puoi creare e memorizzare molteplici modelli in 1 anno ed in più anni, identificandoli con
C30: 1 numero di protocollo progressivo.
C31: Il documento si edita una riga sotto l' altra progressivamente e si stampa a scelta nel foglio del \ MODELLO Elettronico /.
C32: CONTRIBUENTE
C34: Dati Anagrafici | E34: Anagrafica CONTRIBUENTE
C35: 4. | E35: Cognome, denominazione o ragione sociale
E36: Nome CONTRIBUENTE | J36: 2000-01-01
E37: Nome | J37: Data di nascita | M37: Sesso
J38: 01234567891
D39: Comune (o Stato estero) di nascita | H39: Prov | J39: CODICE FISCALE
C41: Dati Anagrafici
C42: 5. | E42: Cognome, denominazione o ragione sociale
E44: Nome | J44: Data di nascita | M44: Sesso
D46: Comune (o Stato estero) di nascita | H46: Prov | J46: CODICE FISCALE
C47: Dopo aver compilato il quadro CONTRIBUENTE, utilizza il foglio \ DATI del VERSAMENTO /
C48: per generare i tuoi singoli documenti inserendo gli elementi specifici riga per riga.
C49: Assegna: 1 numero di protocollo progressivo per creare ogni singolo documento. Stesso nr. di prot. = stesso DOC.
C51: =IF(H138=1,G13,IF(ISERROR(K138),J135,J134)) -> Questo file risulta al momento completamente funzionante ed il sistema rileva tutti i suoi fogli.
C53: Note:
C57: PROPRIETA' illimitata del file
C58: Questo sistema può funzionare in enne copie rinominate a piacere. Funziona con calendario PERPETUO.
C59: Per attivarlo nella totalità dell' ANNO inserisci in qualsiasi momento il tuo codice di proprietà nell' apposito spazio. Puoi
C60: usare contemporaneamente più di un file. Salva un file IN BIANCO con le tue IMPOSTAZIONI da tenere come MATRICE.
F61: =IF(K68=J144,B136,"") -> 
D62: Anagrafica: | F62: =E34 -> Anagrafica CONTRIBUENTE
J64: Partita IVA / C.F: | K64: =J38 -> 01234567891
D66: Indirizzo:
C68: QUI | J68: Inserisci qui il tuo codice di proprietà ---> | Q68: =IF(ISBLANK(K68),0,1) -> 0
C69: =IF(K68=$J$144,"ora è disattivato","cambi trimestre") -> cambi trimestre
C70: =C154 -> 89 | D70: giorni al | E70: primo mese disattivato | I70: =IF(K68="","",IF(J144=K68,B134,B135)) ->  | S70: =IF(K68=J144,J130,H126) -> Il codice che hai inserito nel sistema non è stato riconosciuto.
B71: =IF(K68=J144,B130,IF(I70=B135,B131,IF(C70<0,"",""))) ->  | S71: =IF(K68=J144,J131,H127) -> Le cause possono essere le seguenti:
C72: PREZZO per 1 codice di proprietà € 39,00 | H72: Questo sistema utilizza il codice ID: Contabilità #2
C73: =J27 -> F23 1.6 per Excel .xlsm | L73: www.marcopiccoli.it | S73: 1) La Ragione Sociale inserita non coincide con il testo in mio possesso.
S74: Verifica la punteggiatura e l' assenza di spazi iniziali / finali. Controlla la P.E.C. ricevuta.
C75: Questo file funziona solo se lasciato integro in tutte le sue parti. E' garantito il funzionamento con PC - Excel .xls o sup. | S75: 2) La Partita IVA inserita non coincide con il numero in mio possesso.
C76: Il sistema conta 4 fogli compreso il presente. I fogli NON POSSONO ESSERE ELIMINATI altrimenti l' intero sistema | S76: 3) Il codice che ti ho fornito non è stato correttamente inserito.
C77: non funzionerà. Se succede involontariamente NON SALVARE IL FILE ma chiudilo e riaprilo nuovamente. | S77: 4) Hai inserito un numero a caso?
D78: Pagina WEB del sistema | G78: Sezione info | K78: I tuoi | S78: Contattami liberamente via mail in qualsiasi momento per ulteriori informazioni sul codice.
D79: QUI | G79: F.A.Q. | H79: About me | K79: COMMENTI | S79: 5) Hai cambiato Ragione Sociale o Partita IVA? Contattami, il codice è una monoutenza specifica.
S80: 6) Hai usato il codice di un altro sistema? Non tutti i sistemi hanno lo stesso codice.
C81: Se desideri attivare questo sistema per l' INTERO ANNO e per OGNI ANNO, richiedi via mail il tuo Codice di Proprietà ed | S81: Questo file utilizza il codice di proprietà ID: Contabilità #2.
C82: inseriscilo direttamente nel file che stai già usando. Il codice ti viene inviato con regolare fattura. Chiedi istruzioni via mail.
M83: info@marcopiccoli.it | S83: Per qualsiasi altra cosa, contattami dopo aver considerato questi punti.
D84: SELEZIONA da qui il TRIMESTRE per il quale ATTIVARE questo sistema.
D85: I valori che via via inserisci sono sempre disponibili.
H86: ----> | I86: 1° TRIMESTRE
L89: Con "OK" accetti le regole | M89: OK
E90: A.C. cell di Marco Piccoli | L90: sull' utilizzo di questo file
E91: 34074 Monfalcone, GO - P. IVA 01151800313
E92: INFORMA CHIUNQUE ENTRI IN POSSESSO DI QUESTO FILE, CHE NON E'
E93: POSSIBILE UTILIZZARLO SENZA PROTEZIONI ORIGINALI e CHE SI ATTIVA
E94: ILLIMITATAMENTE SOLO CON REGOLARE CODICE DI PROPRIETA'.
E95: Questo strumento è interamente originale ed è distribuito professionalmente.
E96: E' coperto da diritti d' autore dal momento della sua pubblicazione sul sito
E97: www.marcopiccoli.it.
E98: L' inserimento del Codice di Proprietà, che viene inviato via P.E.C., estende tutti
E99: i diritti anche al Titolare del Sistema individuato nell' ANAGRAFICA di questo file. | O99: QUI
E100: Per qualsiasi altra informazione contattami liberamente via mail.
C103: =CONCATENATE(J27," / Sistema originale, nessuna riproduzione è permessa.") -> F23 1.6 per Excel .xlsm / Sistema originale, nessuna riproduzione è permessa.
C104: Rimuovere le protezioni originali, far circolare una parte del sistema o qualsiasi altro utilizzo (anche parziale, anche dei
C105: testi, anche a titolo gratuito) diverso dalle disposizioni originarie del file, sarà considerata violazione delle norme sulle
C106: opere d' ingegno. Il sistema originale privo di virus e malware si scarica al sito www.marcopiccoli.it.
R109: Torna su
B111: =J27 -> F23 1.6 per Excel .xlsm | L111: www.marcopiccoli.it
D116: X | E116: Maschile | F116: M
E117: Femminile | F117: F
B126: Richiedi via mail il TUO CODICE di PROPRIETA' per EXCEL: | H126: Il codice che hai inserito nel sistema non è stato riconosciuto.
B127: Contatta A.C. cell | H127: Le cause possono essere le seguenti:
B128: Questo file contiene delle MACRO. Leggi le istruzioni e completa il foglio \ IMPOSTAZIONI / prima di utilizzare il file.
B129: Questo file contiene delle MACRO. | K129: disattivato
B130: Questo sistema appartiene al TITOLARE in anagrafica. Qualsiasi altro uso non è permesso. | J130: Questo file si considera funzionante al momento della richiesta del codice.
B131: Verifica le NOTE che trovi a fondo pagina. | J131: Tieni costantemente una copia di sicurezza ed una MATRICE in bianco per gli anni successivi.
B134: OK ! Codice corretto. | E134: OK | F134: Sistema scaduto | J134: Questo file risulta al momento completamente funzionante ed il sistema rileva tutti i suoi fogli.
B135: CODICE NON VALIDO | E135: NO | F135: =IF(M89=E134,TRUE,FALSE) -> TRUE | J135: SISTEMA DANNEGGIATO !!! Chiudere senza salvare!
B136: TITOLARE DEL SISTEMA | J136: =IF(C154=0,"Sistema parzialmente attivato. Inserisci il tuo CODICE di PROPRIETA' nel foglio Presentazione.",CONCATENATE("Sistema attivato dal ",TEXT(T13,"GG/MM")," al ",TEXT(U13,"GG/MM"),". Modifica il trimestre dal foglio Presentazione.")) -> Sistema attivato dal 01/01 al 31/03. Modifica il trimestre dal foglio Presentazione.
B138: 1 | C138: BIT INTEGRITA' | E138: =IF(AND(F135=TRUE,K68=J144),1,0) -> 0 | F138: PROPRIETA' | H138: =IF(G13=F134,1,IF(F135=FALSE,1,0)) -> 0 | I138: SCADENZA | K138: =B138+'DATI del VERSAMENTO'!L1019+'F 23'!AR55+Tabelle!B87 -> 4 | L138: INTEGRITA'
E139: =IF(K68=J144,1,0) -> 0 | F139: PROPRIETA'
J140: =IF(F135=FALSE,"ERRORE: manca l' OK sulle regole di utilizzo del file.",IF(K68=J144,"",IF(C70<0,F134,""))) -> 
B142: Nome del Titolare | G142: P. IVA o Cod. Fiscale | M142: 1 | N142: 2 | O142: 3 | P142: 4 | Q142: 5 | R142: 6 | S142: 7 | T142: 8 | U142: 9 | V142: 10 | W142: 11 | Z142: =M144 -> 0 | AA142: =ROUND((Z142+AC142)*3,1) -> 3 | AB142: 61 | AC142: =N144 -> 1 | AD142: =ROUND((AC142+AF142)*3,1) -> 9 | AE142: =AB142-5 -> 56 | AF142: =O144 -> 2 | AG142: =ROUND((AF142+AI142)*3,1) -> 15 | AH142: =AE142-5 -> 51 | AI142: =P144 -> 3 | AJ142: =ROUND((AI142+AL142)*3,1) -> 21 | AK142: =AH142-5 -> 46 | AL142: =Q144 -> 4 | AM142: =ROUND((AL142+AO142)*3,1) -> 27 | AN142: =AK142-5 -> 41 | AO142: =R144 -> 5 | AP142: =ROUND((AO142+AR142)*3,1) -> 33 | AQ142: =AN142-5 -> 36 | AR142: =S144 -> 6 | AS142: =ROUND((AR142+AU142)*3,1) -> 39 | AT142: =AQ142-5 -> 31 | AU142: =T144 -> 7 | AV142: =ROUND((AU142+AX142)*3,1) -> 45 | AW142: =AT142-5 -> 26 | AX142: =U144 -> 8 | AY142: =ROUND((AX142+BA142)*3,1) -> 51 | AZ142: =AW142-5 -> 21 | BA142: =V144 -> 9 | BB142: =ROUND((BA142+BD142)*3,1) -> 30 | BC142: =AZ142-5 -> 16 | BD142: =W144 -> 1 | BE142: =ROUND((BD142+Z142)*3,1) -> 3 | BF142: =BC142-5 -> 11 | BI142: A | BJ142: B | BK142: C | BL142: D | BM142: F | BN142: E | BO142: I | BP142: G | BQ142: H | BR142: K | BS142: J | BT142: N | BU142: L | BV142: M | BW142: P | BX142: O | BY142: S | BZ142: Q | CA142: R | CB142: U | CC142: T | CD142: X | CE142: V | CF142: W | CG142: Z | CH142: Y | CI142: ù | CJ142: à | CK142: è | CL142: ì | CM142: ò | CN142: / | CP142: " | CQ142: - | CR142: . | CS142: 3 | CT142: 1 | CU142: 2 | CV142: 5 | CW142: 4 | CX142: 8 | CY142: 6 | CZ142: 7 | DA142: 0 | DB142: 9
B144: =E34 -> Anagrafica CONTRIBUENTE | G144: =J38 -> 01234567891 | J144: =CONCATENATE(J148,"-",J149,"-",J150) -> 223-BKBCC-823 | M144: =IF(ISERROR(VALUE(MID($G144,M142,1))),M142,IF(M142<($H145+1),VALUE(MID($G144,M142,1)),0)) -> 0 | N144: 1 | O144: 2 | P144: 3 | Q144: 4 | R144: 5 | S144: 6 | T144: 7 | U144: 8 | V144: 9 | W144: 1 | Z144: =HLOOKUP(MID($B144,Z142,1),$BI142:$DC144,3,FALSE) ->  | AA144: 1 | AB144: 33 | AC144: 1 | AD144: 3 | AE144: 33 | AF144: 12 | AG144: 21 | AH144: 33 | AI144: 1 | AJ144: 12 | AK144: 33 | AL144: 8 | AM144: 33 | AN144: 33 | AO144: 19 | AP144: 33 | AQ144: 33 | AR144: 1 | AS144: 33 | AT144: 33 | AU144: 5 | AV144: 33 | AW144: 33 | AX144: 7 | AY144: 33 | AZ144: 12 | BA144: 3 | BB144: 33 | BC144: 19 | BD144: 1 | BE144: 1 | BF144: 47 | BI144: 1 | BJ144: 2 | BK144: 3 | BL144: 4 | BM144: 5 | BN144: 6 | BO144: 7 | BP144: 8 | BQ144: 9 | BR144: 10 | BS144: 11 | BT144: 12 | BU144: 13 | BV144: 14 | BW144: 15 | BX144: 16 | BY144: 17 | BZ144: 18 | CA144: 19 | CB144: 20 | CC144: 21 | CD144: 22 | CE144: 23 | CF144: 24 | CG144: 25 | CH144: 26 | CI144: 27 | CJ144: 28 | CK144: 29 | CL144: 30 | CM144: 31 | CN144: 32 | CO144: 33 | CP144: 34 | CQ144: 35 | CR144: 36 | CS144: 37 | CT144: 38 | CU144: 39 | CV144: 40 | CW144: 41 | CX144: 42 | CY144: 43 | CZ144: 44 | DA144: 45 | DB144: 46 | DC144: 47
G145: LUNG. Txt | H145: =LEN(G144) -> 11 | BI145: A | BJ145: B | BK145: C | BL145: D | BM145: E | BN145: F | BO145: G | BP145: H | BQ145: I | BR145: J | BS145: K | BT145: L | BU145: M | BV145: N | BW145: O | BX145: P | BY145: Q | BZ145: R | CA145: S | CB145: T | CC145: U | CD145: V | CE145: W | CF145: X | CG145: Y | CH145: Z | CS145: =COUNTIF($Z142:$BF142,CS142) -> 3 | CT145: 2 | CU145: 1 | CV145: 1 | CW145: 1 | CX145: 1 | CY145: 1 | CZ145: 1 | DA145: 1 | DB145: 2
B146: 12 | X146: =IF(X149<0,X149*-1,X149) -> 227 | BG146: =IF(BG149<0,BG149*-1,BG149) -> 3734 | CQ146: 15 | CS146: =IF(ISERROR(HLOOKUP(SMALL($Z142:$BF142,CS142),$BI144:$CH145,2,FALSE)),HLOOKUP(SMALL($Z142:$BF142,CS142),$BI144:$CH145,2,TRUE),HLOOKUP(SMALL($Z142:$BF142,CS142),$BI144:$CH145,2,FALSE)) -> A | CT146: =IF(ISERROR(HLOOKUP(SMALL($Z142:$BF142,CT142+SUM($CS145:CS145)),$BI144:$CH145,2,FALSE)),HLOOKUP(SMALL($Z142:$BF142,CT142+SUM($CS145:CS145)),$BI144:$CH145,2,TRUE),HLOOKUP(SMALL($Z142:$BF142,CT142+SUM($CS145:CS145)),$BI144:$CH145,2,FALSE)) -> B | CU146: =IF(ISERROR(HLOOKUP(SMALL($Z142:$BF142,CU142+SUM($CS145:CT145)),$BI144:$CH145,2,FALSE)),HLOOKUP(SMALL($Z142:$BF142,CU142+SUM($CS145:CT145)),$BI144:$CH145,2,TRUE),HLOOKUP(SMALL($Z142:$BF142,CU142+SUM($CS145:CT145)),$BI144:$CH145,2,FALSE)) -> C | CV146: =IF(ISERROR(HLOOKUP(SMALL($Z142:$BF142,CV142+SUM($CS145:CU145)),$BI144:$CH145,2,FALSE)),HLOOKUP(SMALL($Z142:$BF142,CV142+SUM($CS145:CU145)),$BI144:$CH145,2,TRUE),HLOOKUP(SMALL($Z142:$BF142,CV142+SUM($CS145:CU145)),$BI144:$CH145,2,FALSE)) -> G | CW146: =IF(ISERROR(HLOOKUP(SMALL($Z142:$BF142,CW142+SUM($CS145:CV145)),$BI144:$CH145,2,FALSE)),HLOOKUP(SMALL($Z142:$BF142,CW142+SUM($CS145:CV145)),$BI144:$CH145,2,TRUE),HLOOKUP(SMALL($Z142:$BF142,CW142+SUM($CS145:CV145)),$BI144:$CH145,2,FALSE)) -> G | CX146: =IF(ISERROR(HLOOKUP(SMALL($Z142:$BF142,CX142+SUM($CS145:CW145)),$BI144:$CH145,2,FALSE)),HLOOKUP(SMALL($Z142:$BF142,CX142+SUM($CS145:CW145)),$BI144:$CH145,2,TRUE),HLOOKUP(SMALL($Z142:$BF142,CX142+SUM($CS145:CW145)),$BI144:$CH145,2,FALSE)) -> O | CY146: =IF(ISERROR(HLOOKUP(SMALL($Z142:$BF142,CY142+SUM($CS145:CX145)),$BI144:$CH145,2,FALSE)),HLOOKUP(SMALL($Z142:$BF142,CY142+SUM($CS145:CX145)),$BI144:$CH145,2,TRUE),HLOOKUP(SMALL($Z142:$BF142,CY142+SUM($CS145:CX145)),$BI144:$CH145,2,FALSE)) -> K | CZ146: =IF(ISERROR(HLOOKUP(SMALL($Z142:$BF142,CZ142+SUM($CS145:CY145)),$BI144:$CH145,2,FALSE)),HLOOKUP(SMALL($Z142:$BF142,CZ142+SUM($CS145:CY145)),$BI144:$CH145,2,TRUE),HLOOKUP(SMALL($Z142:$BF142,CZ142+SUM($CS145:CY145)),$BI144:$CH145,2,FALSE)) -> P | DA146: =IF(ISERROR(HLOOKUP(SMALL($Z142:$BF142,DA142+SUM($CS145:CZ145)),$BI144:$CH145,2,FALSE)),HLOOKUP(SMALL($Z142:$BF142,DA142+SUM($CS145:CZ145)),$BI144:$CH145,2,TRUE),HLOOKUP(SMALL($Z142:$BF142,DA142+SUM($CS145:CZ145)),$BI144:$CH145,2,FALSE)) -> G | DB146: =IF(ISERROR(HLOOKUP(SMALL($Z142:$BF142,CQ146),$BI144:$CH145,2,FALSE)),HLOOKUP(SMALL($Z142:$BF142,CQ146),$BI144:$CH145,2,TRUE),HLOOKUP(SMALL($Z142:$BF142,CQ146),$BI144:$CH145,2,FALSE)) -> K
M147: =M144*$B146 -> 0 | O147: =O144*$B146 -> 24 | Q147: =Q144*$B146 -> 48 | S147: =S144*$B146 -> 72 | U147: =U144*$B146 -> 96 | W147: =W144*$B146 -> 12 | X147: =IF(X150<0,X150*-1,X150) -> 280 | Z147: =Z144*$B146 ->  | AB147: =AB144*$B146 -> 396 | AD147: =AD144*$B146 -> 36 | AF147: =AF144*$B146 -> 144 | AH147: =AH144*$B146 -> 396 | AJ147: =AJ144*$B146 -> 144 | AL147: =AL144*$B146 -> 96 | AN147: =AN144*$B146 -> 396 | AP147: =AP144*$B146 -> 396 | AR147: =AR144*$B146 -> 12 | AT147: =AT144*$B146 -> 396 | AV147: =AV144*$B146 -> 396 | AX147: =AX144*$B146 -> 84 | AZ147: =AZ144*$B146 -> 144 | BB147: =BB144*$B146 -> 396 | BD147: =BD144*$B146 -> 12 | BF147: =BF144*$B146 -> 564 | BG147: =IF(BG150<0,BG150*-1,BG150) -> 3346 | CS147: =IF(ISERROR(CS146),0,CS146) -> A | CT147: B | CU147: C | CV147: G | CW147: G | CX147: O | CY147: K | CZ147: P | DA147: G | DB147: K
D148: X | E148: Maschile | F148: M | J148: =CONCATENATE(AE153,AF153,AG153) -> 223 | N148: =N144*$B146 -> 12 | P148: =P144*$B146 -> 36 | R148: =R144*$B146 -> 60 | T148: =T144*$B146 -> 84 | V148: =V144*$B146 -> 108 | X148: =IF(X151<0,X151*-1,X151) -> 1105 | AA148: =AA144*$B146 -> 12 | AC148: =AC144*$B146 -> 12 | AE148: =AE144*$B146 -> 396 | AG148: =AG144*$B146 -> 252 | AI148: =AI144*$B146 -> 12 | AK148: =AK144*$B146 -> 396 | AM148: =AM144*$B146 -> 396 | AO148: =AO144*$B146 -> 228 | AQ148: =AQ144*$B146 -> 396 | AS148: =AS144*$B146 -> 396 | AU148: =AU144*$B146 -> 60 | AW148: =AW144*$B146 -> 396 | AY148: =AY144*$B146 -> 396 | BA148: =BA144*$B146 -> 36 | BC148: =BC144*$B146 -> 228 | BE148: =BE144*$B146 -> 12 | BG148: =IF(BG151<0,BG151*-1,BG151) -> 15302
E149: Femminile | F149: F | J149: =CONCATENATE(R153,S153,T153,U153,V153) -> BKBCC | M149: =M147-N144 -> -1 | O149: =O147-P144 -> 21 | Q149: =Q147-R144 -> 43 | S149: =S147-T144 -> 65 | U149: =U147-V144 -> 87 | W149: =W147-M144 -> 12 | X149: =SUM(M149:W149) -> 227 | Z149: =Z147-BF144 ->  | AB149: =AB147-AA144 -> 395 | AD149: =AD147-AC144 -> 35 | AF149: =AF147-AE144 -> 111 | AH149: =AH147-AG144 -> 375 | AJ149: =AJ147-AI144 -> 143 | AL149: =AL147-AK144 -> 63 | AN149: =AN147-AM144 -> 363 | AP149: =AP147-AO144 -> 377 | AR149: =AR147-AQ144 -> -21 | AT149: =AT147-AS144 -> 363 | AV149: =AV147-AU144 -> 391 | AX149: =AX147-AW144 -> 51 | AZ149: =AZ147-AY144 -> 111 | BB149: =BB147-BA144 -> 393 | BD149: =BD147-BC144 -> -7 | BF149: =BF147-BE144 -> 563 | BG149: =SUMIF(Z149:BF149,">0") -> 3734 | CS149: A | CT149: D | CU149: E | CV149: G | CW149: O | CX149: P | CY149: R | CZ149: R | DA149: S | DB149: U
J150: =CONCATENATE(AH153,AI153,AJ153) -> 823 | N150: =N148-M144 -> 12 | P150: =P148-O144 -> 34 | R150: =R148-Q144 -> 56 | T150: =T148-S144 -> 78 | V150: =V148-U144 -> 100 | X150: =SUM(M150:W150) -> 280 | AA150: =AA148-AB144 -> -21 | AC150: =AC148-AD144 -> 9 | AE150: =AE148-AF144 -> 384 | AG150: =AG148-AH144 -> 219 | AI150: =AI148-AJ144 -> 0 | AK150: =AK148-AL144 -> 388 | AM150: =AM148-AN144 -> 363 | AO150: =AO148-AP144 -> 195 | AQ150: =AQ148-AR144 -> 395 | AS150: =AS148-AT144 -> 363 | AU150: =AU148-AV144 -> 27 | AW150: =AW148-AX144 -> 389 | AY150: =AY148-AZ144 -> 384 | BA150: =BA148-BB144 -> 3 | BC150: =BC148-BD144 -> 227 | BE150: =BE148-BF144 -> -35 | BG150: =SUMIF(Z150:BF150,">0") -> 3346 | CS150: =IF(CS147=0,CS149,CS146) -> A | CT150: B | CU150: C | CV150: G | CW150: G | CX150: O | CY150: K | CZ150: P | DA150: G | DB150: K
B151: =DAY(E151) -> 31 | C151: =MONTH(E151) -> 3 | D151: =YEAR(E151) -> 2024 | E151: =U13 -> 45382 | M151: =M144+M147+M149 -> -1 | N151: =N144+N148+N150 -> 25 | O151: =O144+O147+O149 -> 47 | P151: =P144+P148+P150 -> 73 | Q151: =Q144+Q147+Q149 -> 95 | R151: =R144+R148+R150 -> 121 | S151: =S144+S147+S149 -> 143 | T151: =T144+T148+T150 -> 169 | U151: =U144+U147+U149 -> 191 | V151: =V144+V148+V150 -> 217 | W151: =W144+W147+W149 -> 25 | X151: =SUM(M151:W151) -> 1105 | Z151: =Z144+Z147+Z149 ->  | AA151: =AA144+AA148+AA150 -> -8 | AB151: =AB144+AB147+AB149 -> 824 | AC151: =AC144+AC148+AC150 -> 22 | AD151: =AD144+AD147+AD149 -> 74 | AE151: =AE144+AE148+AE150 -> 813 | AF151: =AF144+AF147+AF149 -> 267 | AG151: =AG144+AG148+AG150 -> 492 | AH151: =AH144+AH147+AH149 -> 804 | AI151: =AI144+AI148+AI150 -> 13 | AJ151: =AJ144+AJ147+AJ149 -> 299 | AK151: =AK144+AK148+AK150 -> 817 | AL151: =AL144+AL147+AL149 -> 167 | AM151: =AM144+AM148+AM150 -> 792 | AN151: =AN144+AN147+AN149 -> 792 | AO151: =AO144+AO148+AO150 -> 442 | AP151: =AP144+AP147+AP149 -> 806 | AQ151: =AQ144+AQ148+AQ150 -> 824 | AR151: =AR144+AR147+AR149 -> -8 | AS151: =AS144+AS148+AS150 -> 792 | AT151: =AT144+AT147+AT149 -> 792 | AU151: =AU144+AU148+AU150 -> 92 | AV151: =AV144+AV147+AV149 -> 820 | AW151: =AW144+AW148+AW150 -> 818 | AX151: =AX144+AX147+AX149 -> 142 | AY151: =AY144+AY148+AY150 -> 813 | AZ151: =AZ144+AZ147+AZ149 -> 267 | BA151: =BA144+BA148+BA150 -> 42 | BB151: =BB144+BB147+BB149 -> 822 | BC151: =BC144+BC148+BC150 -> 474 | BD151: =BD144+BD147+BD149 -> 6 | BE151: =BE144+BE148+BE150 -> -22 | BF151: =BF144+BF147+BF149 -> 1174 | BG151: =SUMIF(Z151:BF151,">0") -> 15302
B152: =DAY(E152) -> 2 | C152: =MONTH(E152) -> 1 | D152: =YEAR(E151) -> 2024 | E152: =TODAY() -> 45293
M153: =SUM(X149:X151) -> 1612 | Q153: =LEN(TEXT(M153,"@")) -> 4 | R153: =IF(Q153>0,HLOOKUP(MID(TEXT($M153,"@"),1,1),$CS142:$DB150,9,FALSE),"") -> B | S153: =IF($Q153>1,HLOOKUP(MID(TEXT($M153,"@"),2,1),$CS142:$DB150,9,FALSE),HLOOKUP(MID(TEXT($X153,"@"),1,1),$CS142:$DB150,9,FALSE)) -> K | T153: =IF($Q153>2,HLOOKUP(MID(TEXT($M153,"@"),3,1),$CS142:$DB150,9,FALSE),HLOOKUP(MID(TEXT($X153,"@"),2,1),$CS142:$DB150,9,FALSE)) -> B | U153: =IF($Q153>3,HLOOKUP(MID(TEXT($M153,"@"),4,1),$CS142:$DB150,9,FALSE),HLOOKUP(MID(TEXT($X153,"@"),3,1),$CS142:$DB150,9,FALSE)) -> C | V153: =IF($Q153>4,HLOOKUP(MID(TEXT($M153,"@"),5,1),$CS142:$DB150,9,FALSE),HLOOKUP(MID(TEXT($X153,"@"),4,1),$CS142:$DB150,9,FALSE)) -> C | W153: =LEN(TEXT(CONCATENATE(TEXT(X146,"@"),TEXT(X147,"@"),TEXT(X148,"@")),"@")) -> 10 | X153: =IF(W153<4,CONCATENATE(TEXT(CQ146,"@"),TEXT(X146,"@"),TEXT(X147,"@"),TEXT(X148,"@")),CONCATENATE(TEXT(X146,"@"),TEXT(X147,"@"),TEXT(X148,"@"))) -> 2272801105 | Z153: =SUM(BG149:BG151) -> 22382 | AD153: =LEN(TEXT(Z153,"@")) -> 5 | AE153: =IF(AD153>0,MID(TEXT($Z153,"@"),1,1),"") -> 2 | AF153: =IF($AD153>1,MID(TEXT($Z153,"@"),2,1),MID(TEXT($BG153,"@"),1,1)) -> 2 | AG153: =IF($AD153>2,MID(TEXT($Z153,"@"),3,1),MID(TEXT($BG153,"@"),2,1)) -> 3 | AH153: =IF($AD153>3,MID(TEXT($Z153,"@"),4,1),MID(TEXT($BG153,"@"),3,1)) -> 8 | AI153: =IF($AD153>4,MID(TEXT($Z153,"@"),5,1),MID(TEXT($BG153,"@"),4,1)) -> 2 | AJ153: =IF($AD153>5,MID(TEXT($Z153,"@"),6,1),MID(TEXT($BG153,"@"),5,1)) -> 3 | AK153: =LEN(TEXT(CONCATENATE(TEXT(BG146,"@"),TEXT(BG147,"@")),"@")) -> 8 | BG153: =IF(AK153<5,CONCATENATE(TEXT(BG148,"@"),TEXT(BG146,"@"),TEXT(BG147,"@")),CONCATENATE(TEXT(BG146,"@"),TEXT(BG147,"@"))) -> 37343346
B154: =DATE(D151,C151,B151) -> 45382 | C154: =IF((B154-B155)<0,0,B154-B155) -> 89
B155: =DATE(D152,C152,B152) -> 45293
F158: ANNO | G158: ='F 23'!AX3 -> 2024
C159: 1° TRIMESTRE | E159: 1 | F159: =DATE(G158,E159,1) -> 2024-01-01 | G159: =F160-1 -> 2024-03-31
C160: 2° TRIMESTRE | E160: 4 | F160: =DATE(G158,E160,1) -> 2024-04-01 | G160: =F161-1 -> 2024-06-30
C161: 3° TRIMESTRE | E161: 7 | F161: =DATE(G158,E161,1) -> 2024-07-01 | G161: =F162-1 -> 2024-09-30
C162: 4° TRIMESTRE | E162: 10 | F162: =DATE(G158,E162,1) -> 2024-10-01 | G162: =DATE(G158,E163,31) -> 2024-12-31
E163: 12

Sheet DATI del VERSAMENTO
D2: Contribuente: | J2: Compila le righe di questa sezione una sotto l' altra, assegnando un numero di protocollo progressivo e la data in ogni riga.
D3: =CONTRIBUENTE!J38 -> 01234567891 | J3: Nel foglio \ F 23 / potrai richiamare e stampare tutti i documenti così generati.
D4: Stesso nr. di PROT. = | J4: Dettaglio Versamento
D5: stesso DOCUMENTO | J5: =IF(M1019=0,"",CONTRIBUENTE!$F$134) ->  | U5: Vedi foglio \ Tabelle /
D6: NR. | E6: DATA | G6: Prov. | H6: Ufficio | J6: CODICE | K6: Descrizione libera | L6: importi a debito | M6: codice | O6: Conten- | R6: Estremi atto o documento | U6: Delega irrevocabile a | Y6: Addeb. | AA6: Protocollo | AC6: N O T E
D7: Prot. | G7: Concess. | H7: o ente | J7: TRIBUTO | K7: (campo ris. all' ufficio) | L7: VERSATI | M7: destinatario | O7: zioso | P7: CAUSALE | R7: ANNO | S7: NUMERO | V7: ABI | W7: CAB | Y7: IBAN | AA7: alfanumerico
A9: 1 di 1000 | B9: =IF(AG9=$AG$1013,0,IF(M$1019=1,0,D9&"-"&YEAR(E9))) -> 1-2024 | C9: =IF(M$1019=1,0,B9&"-"&AE9) -> 1-2024-1 | D9: 1 | E9: 2024-01-01 | G9: PV | J9: 0001 | L9: 1000 | M9: 0001 | O9: 1 | P9: IN | R9: 1999 | S9: 123456 | U9: B1 | V9: =IF(M$1019=1,"",IF(U9="","",VLOOKUP(U9,Tabelle!$B$4:$O$6,14,FALSE))) -> 00001 | W9: =IF(M$1019=1,"",IF(U9="","",VLOOKUP(U9,Tabelle!$B$4:$Q$6,16,FALSE))) -> 10000 | Y9: B1 | AA9: AB 100 | AC9: Testo Libero | AE9: 1 | AG9: =IF(E9>0,IF(OR(MONTH(E9)<$L$1030,MONTH(E9)>$L$1031),AG$1013,0),0) -> 0
A10: 2 | B10: =IF(AG10=$AG$1013,0,IF(M$1019=1,0,D10&"-"&YEAR(E10))) -> 2-2024 | C10: 2-2024-1 | D10: 2 | E10: 2024-01-01 | G10: MI | J10: 0002 | L10: 2000 | M10: 0002 | O10: 2 | P10: VT | R10: 2000 | S10: AAAAA | U10: B2 | V10: =IF(M$1019=1,"",IF(U10="","",VLOOKUP(U10,Tabelle!$B$4:$O$6,14,FALSE))) -> 00002 | W10: =IF(M$1019=1,"",IF(U10="","",VLOOKUP(U10,Tabelle!$B$4:$Q$6,16,FALSE))) -> 20000 | Y10: B2 | AA10: CD 100 | AC10: Testo Libero riga 1 | AE10: =IF(B10="",0,IF(B10=B9,COUNTIF(B$9:B9,B10)+1,1)) -> 1 | AF10: =IF(OR(D10="",M$1019=1),0,IF(AE10=8,1,0)) -> 0 | AG10: =IF(E10>0,IF(OR(MONTH(E10)<$L$1030,MONTH(E10)>$L$1031),AG$1013,0),0) -> 0
A11: 3 | B11: 2-2024 | C11: 2-2024-2 | D11: 2 | E11: 2024-01-01 | J11: 0003 | L11: 3000 | M11: 0003 | V11: =IF(M$1019=1,"",IF(U11="","",VLOOKUP(U11,Tabelle!$B$4:$O$6,14,FALSE))) ->  | W11: =IF(M$1019=1,"",IF(U11="","",VLOOKUP(U11,Tabelle!$B$4:$Q$6,16,FALSE))) ->  | AC11: Testo Libero riga 2 | AE11: =IF(B11="",0,IF(B11=B10,COUNTIF(B$9:B10,B11)+1,1)) -> 2 | AF11: 0 | AG11: 0
A12: 4 | B12: 2-2024 | C12: 2-2024-3 | D12: 2 | E12: 2024-01-01 | J12: A999 | L12: 10000 | M12: A999 | V12: =IF(M$1019=1,"",IF(U12="","",VLOOKUP(U12,Tabelle!$B$4:$O$6,14,FALSE))) ->  | W12: =IF(M$1019=1,"",IF(U12="","",VLOOKUP(U12,Tabelle!$B$4:$Q$6,16,FALSE))) ->  | AC12: Righe di esempio | AE12: =IF(B12="",0,IF(B12=B11,COUNTIF(B$9:B11,B12)+1,1)) -> 3 | AF12: 0 | AG12: 0
A13: 5 | B13: -1900 | C13: -1900-1 | V13: =IF(M$1019=1,"",IF(U13="","",VLOOKUP(U13,Tabelle!$B$4:$O$6,14,FALSE))) ->  | W13: =IF(M$1019=1,"",IF(U13="","",VLOOKUP(U13,Tabelle!$B$4:$Q$6,16,FALSE))) ->  | AE13: =IF(B13="",0,IF(B13=B12,COUNTIF(B$9:B12,B13)+1,1)) -> 1 | AF13: 0 | AG13: 0
A14: 6 | B14: -1900 | C14: -1900-2 | V14: =IF(M$1019=1,"",IF(U14="","",VLOOKUP(U14,Tabelle!$B$4:$O$6,14,FALSE))) ->  | W14: =IF(M$1019=1,"",IF(U14="","",VLOOKUP(U14,Tabelle!$B$4:$Q$6,16,FALSE))) ->  | AE14: =IF(B14="",0,IF(B14=B13,COUNTIF(B$9:B13,B14)+1,1)) -> 2 | AF14: 0 | AG14: 0
A15: 7 | B15: -1900 | C15: -1900-3 | V15: =IF(M$1019=1,"",IF(U15="","",VLOOKUP(U15,Tabelle!$B$4:$O$6,14,FALSE))) ->  | W15: =IF(M$1019=1,"",IF(U15="","",VLOOKUP(U15,Tabelle!$B$4:$Q$6,16,FALSE))) ->  | AE15: =IF(B15="",0,IF(B15=B14,COUNTIF(B$9:B14,B15)+1,1)) -> 3 | AF15: 0 | AG15: 0
A16: 8 | B16: -1900 | C16: -1900-4 | V16: =IF(M$1019=1,"",IF(U16="","",VLOOKUP(U16,Tabelle!$B$4:$O$6,14,FALSE))) ->  | W16: =IF(M$1019=1,"",IF(U16="","",VLOOKUP(U16,Tabelle!$B$4:$Q$6,16,FALSE))) ->  | AE16: =IF(B16="",0,IF(B16=B15,COUNTIF(B$9:B15,B16)+1,1)) -> 4 | AF16: 0 | AG16: 0
A17: 9 | B17: -1900 | C17: -1900-5 | V17: =IF(M$1019=1,"",IF(U17="","",VLOOKUP(U17,Tabelle!$B$4:$O$6,14,FALSE))) ->  | W17: =IF(M$1019=1,"",IF(U17="","",VLOOKUP(U17,Tabelle!$B$4:$Q$6,16,FALSE))) ->  | AE17: =IF(B17="",0,IF(B17=B16,COUNTIF(B$9:B16,B17)+1,1)) -> 5 | AF17: 0 | AG17: 0
A18: 10 | B18: -1900 | C18: -1900-6 | V18: =IF(M$1019=1,"",IF(U18="","",VLOOKUP(U18,Tabelle!$B$4:$O$6,14,FALSE))) ->  | W18: =IF(M$1019=1,"",IF(U18="","",VLOOKUP(U18,Tabelle!$B$4:$Q$6,16,FALSE))) ->  | AE18: =IF(B18="",0,IF(B18=B17,COUNTIF(B$9:B17,B18)+1,1)) -> 6 | AF18: 0 | AG18: 0
A19: 11 | B19: -1900 | C19: -1900-7 | V19: =IF(M$1019=1,"",IF(U19="","",VLOOKUP(U19,Tabelle!$B$4:$O$6,14,FALSE))) ->  | W19: =IF(M$1019=1,"",IF(U19="","",VLOOKUP(U19,Tabelle!$B$4:$Q$6,16,FALSE))) ->  | AE19: =IF(B19="",0,IF(B19=B18,COUNTIF(B$9:B18,B19)+1,1)) -> 7 | AF19: 0 | AG19: 0
A20: 12 | B20: -1900 | C20: -1900-8 | V20: =IF(M$1019=1,"",IF(U20="","",VLOOKUP(U20,Tabelle!$B$4:$O$6,14,FALSE))) ->  | W20: =IF(M$1019=1,"",IF(U20="","",VLOOKUP(U20,Tabelle!$B$4:$Q$6,16,FALSE))) ->  | AE20: =IF(B20="",0,IF(B20=B19,COUNTIF(B$9:B19,B20)+1,1)) -> 8 | AF20: =IF(OR(D20="",M$1019=1),0,IF(AE20=8,1,0)) -> 0 | AG20: 0
A21: 13 | B21: -1900 | C21: -1900-9 | V21: =IF(M$1019=1,"",IF(U21="","",VLOOKUP(U21,Tabelle!$B$4:$O$6,14,FALSE))) ->  | W21: =IF(M$1019=1,"",IF(U21="","",VLOOKUP(U21,Tabelle!$B$4:$Q$6,16,FALSE))) ->  | AE21: =IF(B21="",0,IF(B21=B20,COUNTIF(B$9:B20,B21)+1,1)) -> 9 | AF21: 0 | AG21: 0
A22: 14 | B22: -1900 | C22: -1900-10 | V22: =IF(M$1019=1,"",IF(U22="","",VLOOKUP(U22,Tabelle!$B$4:$O$6,14,FALSE))) ->  | W22: =IF(M$1019=1,"",IF(U22="","",VLOOKUP(U22,Tabelle!$B$4:$Q$6,16,FALSE))) ->  | AE22: =IF(B22="",0,IF(B22=B21,COUNTIF(B$9:B21,B22)+1,1)) -> 10 | AF22: 0 | AG22: 0
A23: 15 | B23: -1900 | C23: -1900-11 | V23: =IF(M$1019=1,"",IF(U23="","",VLOOKUP(U23,Tabelle!$B$4:$O$6,14,FALSE))) ->  | W23: =IF(M$1019=1,"",IF(U23="","",VLOOKUP(U23,Tabelle!$B$4:$Q$6,16,FALSE))) ->  | AE23: =IF(B23="",0,IF(B23=B22,COUNTIF(B$9:B22,B23)+1,1)) -> 11 | AF23: 0 | AG23: 0
A24: 16 | B24: -1900 | C24: -1900-12 | V24: =IF(M$1019=1,"",IF(U24="","",VLOOKUP(U24,Tabelle!$B$4:$O$6,14,FALSE))) ->  | W24: =IF(M$1019=1,"",IF(U24="","",VLOOKUP(U24,Tabelle!$B$4:$Q$6,16,FALSE))) ->  | AE24: =IF(B24="",0,IF(B24=B23,COUNTIF(B$9:B23,B24)+1,1)) -> 12 | AF24: 0 | AG24: 0
A25: 17 | B25: -1900 | C25: -1900-13 | V25: =IF(M$1019=1,"",IF(U25="","",VLOOKUP(U25,Tabelle!$B$4:$O$6,14,FALSE))) ->  | W25: =IF(M$1019=1,"",IF(U25="","",VLOOKUP(U25,Tabelle!$B$4:$Q$6,16,FALSE))) ->  | AE25: =IF(B25="",0,IF(B25=B24,COUNTIF(B$9:B24,B25)+1,1)) -> 13 | AF25: 0 | AG25: 0
A26: 18 | B26: -1900 | C26: -1900-14 | V26: =IF(M$1019=1,"",IF(U26="","",VLOOKUP(U26,Tabelle!$B$4:$O$6,14,FALSE))) ->  | W26: =IF(M$1019=1,"",IF(U26="","",VLOOKUP(U26,Tabelle!$B$4:$Q$6,16,FALSE))) ->  | AE26: =IF(B26="",0,IF(B26=B25,COUNTIF(B$9:B25,B26)+1,1)) -> 14 | AF26: 0 | AG26: 0
A27: 19 | B27: -1900 | C27: -1900-15 | V27: =IF(M$1019=1,"",IF(U27="","",VLOOKUP(U27,Tabelle!$B$4:$O$6,14,FALSE))) ->  | W27: =IF(M$1019=1,"",IF(U27="","",VLOOKUP(U27,Tabelle!$B$4:$Q$6,16,FALSE))) ->  | AE27: =IF(B27="",0,IF(B27=B26,COUNTIF(B$9:B26,B27)+1,1)) -> 15 | AF27: 0 | AG27: 0
A28: 20 | B28: -1900 | C28: -1900-16 | V28: =IF(M$1019=1,"",IF(U28="","",VLOOKUP(U28,Tabelle!$B$4:$O$6,14,FALSE))) ->  | W28: =IF(M$1019=1,"",IF(U28="","",VLOOKUP(U28,Tabelle!$B$4:$Q$6,16,FALSE))) ->  | AE28: =IF(B28="",0,IF(B28=B27,COUNTIF(B$9:B27,B28)+1,1)) -> 16 | AF28: 0 | AG28: 0
A29: 21 | B29: -1900 | C29: -1900-17 | V29: =IF(M$1019=1,"",IF(U29="","",VLOOKUP(U29,Tabelle!$B$4:$O$6,14,FALSE))) ->  | W29: =IF(M$1019=1,"",IF(U29="","",VLOOKUP(U29,Tabelle!$B$4:$Q$6,16,FALSE))) ->  | AE29: =IF(B29="",0,IF(B29=B28,COUNTIF(B$9:B28,B29)+1,1)) -> 17 | AF29: 0 | AG29: 0
A30: 22 | B30: -1900 | C30: -1900-18 | V30: =IF(M$1019=1,"",IF(U30="","",VLOOKUP(U30,Tabelle!$B$4:$O$6,14,FALSE))) ->  | W30: =IF(M$1019=1,"",IF(U30="","",VLOOKUP(U30,Tabelle!$B$4:$Q$6,16,FALSE))) ->  | AE30: =IF(B30="",0,IF(B30=B29,COUNTIF(B$9:B29,B30)+1,1)) -> 18 | AF30: 0 | AG30: 0
A31: 23 | B31: -1900 | C31: -1900-19 | V31: =IF(M$1019=1,"",IF(U31="","",VLOOKUP(U31,Tabelle!$B$4:$O$6,14,FALSE))) ->  | W31: =IF(M$1019=1,"",IF(U31="","",VLOOKUP(U31,Tabelle!$B$4:$Q$6,16,FALSE))) ->  | AE31: =IF(B31="",0,IF(B31=B30,COUNTIF(B$9:B30,B31)+1,1)) -> 19 | AF31: 0 | AG31: 0
A32: 24 | B32: -1900 | C32: -1900-20 | V32: =IF(M$1019=1,"",IF(U32="","",VLOOKUP(U32,Tabelle!$B$4:$O$6,14,FALSE))) ->  | W32: =IF(M$1019=1,"",IF(U32="","",VLOOKUP(U32,Tabelle!$B$4:$Q$6,16,FALSE))) ->  | AE32: =IF(B32="",0,IF(B32=B31,COUNTIF(B$9:B31,B32)+1,1)) -> 20 | AF32: 0 | AG32: 0
A33: 25 | B33: -1900 | C33: -1900-21 | V33: =IF(M$1019=1,"",IF(U33="","",VLOOKUP(U33,Tabelle!$B$4:$O$6,14,FALSE))) ->  | W33: =IF(M$1019=1,"",IF(U33="","",VLOOKUP(U33,Tabelle!$B$4:$Q$6,16,FALSE))) ->  | AE33: =IF(B33="",0,IF(B33=B32,COUNTIF(B$9:B32,B33)+1,1)) -> 21 | AF33: 0 | AG33: 0
A34: 26 | B34: -1900 | C34: -1900-22 | V34: =IF(M$1019=1,"",IF(U34="","",VLOOKUP(U34,Tabelle!$B$4:$O$6,14,FALSE))) ->  | W34: =IF(M$1019=1,"",IF(U34="","",VLOOKUP(U34,Tabelle!$B$4:$Q$6,16,FALSE))) ->  | AE34: =IF(B34="",0,IF(B34=B33,COUNTIF(B$9:B33,B34)+1,1)) -> 22 | AF34: 0 | AG34: 0
A35: 27 | B35: -1900 | C35: -1900-23 | V35: =IF(M$1019=1,"",IF(U35="","",VLOOKUP(U35,Tabelle!$B$4:$O$6,14,FALSE))) ->  | W35: =IF(M$1019=1,"",IF(U35="","",VLOOKUP(U35,Tabelle!$B$4:$Q$6,16,FALSE))) ->  | AE35: =IF(B35="",0,IF(B35=B34,COUNTIF(B$9:B34,B35)+1,1)) -> 23 | AF35: 0 | AG35: 0
A36: 28 | B36: -1900 | C36: -1900-24 | V36: =IF(M$1019=1,"",IF(U36="","",VLOOKUP(U36,Tabelle!$B$4:$O$6,14,FALSE))) ->  | W36: =IF(M$1019=1,"",IF(U36="","",VLOOKUP(U36,Tabelle!$B$4:$Q$6,16,FALSE))) ->  | AE36: =IF(B36="",0,IF(B36=B35,COUNTIF(B$9:B35,B36)+1,1)) -> 24 | AF36: 0 | AG36: 0
A37: 29 | B37: -1900 | C37: -1900-25 | V37: =IF(M$1019=1,"",IF(U37="","",VLOOKUP(U37,Tabelle!$B$4:$O$6,14,FALSE))) ->  | W37: =IF(M$1019=1,"",IF(U37="","",VLOOKUP(U37,Tabelle!$B$4:$Q$6,16,FALSE))) ->  | AE37: =IF(B37="",0,IF(B37=B36,COUNTIF(B$9:B36,B37)+1,1)) -> 25 | AF37: 0 | AG37: 0
A38: 30 | B38: -1900 | C38: -1900-26 | V38: =IF(M$1019=1,"",IF(U38="","",VLOOKUP(U38,Tabelle!$B$4:$O$6,14,FALSE))) ->  | W38: =IF(M$1019=1,"",IF(U38="","",VLOOKUP(U38,Tabelle!$B$4:$Q$6,16,FALSE))) ->  | AE38: =IF(B38="",0,IF(B38=B37,COUNTIF(B$9:B37,B38)+1,1)) -> 26 | AF38: 0 | AG38: 0
A39: 31 | B39: -1900 | C39: -1900-27 | V39: =IF(M$1019=1,"",IF(U39="","",VLOOKUP(U39,Tabelle!$B$4:$O$6,14,FALSE))) ->  | W39: =IF(M$1019=1,"",IF(U39="","",VLOOKUP(U39,Tabelle!$B$4:$Q$6,16,FALSE))) ->  | AE39: =IF(B39="",0,IF(B39=B38,COUNTIF(B$9:B38,B39)+1,1)) -> 27 | AF39: 0 | AG39: 0
A40: 32 | B40: -1900 | C40: -1900-28 | V40: =IF(M$1019=1,"",IF(U40="","",VLOOKUP(U40,Tabelle!$B$4:$O$6,14,FALSE))) ->  | W40: =IF(M$1019=1,"",IF(U40="","",VLOOKUP(U40,Tabelle!$B$4:$Q$6,16,FALSE))) ->  | AE40: =IF(B40="",0,IF(B40=B39,COUNTIF(B$9:B39,B40)+1,1)) -> 28 | AF40: 0 | AG40: 0
A41: 33 | B41: -1900 | C41: -1900-29 | V41: =IF(M$1019=1,"",IF(U41="","",VLOOKUP(U41,Tabelle!$B$4:$O$6,14,FALSE))) ->  | W41: =IF(M$1019=1,"",IF(U41="","",VLOOKUP(U41,Tabelle!$B$4:$Q$6,16,FALSE))) ->  | AE41: =IF(B41="",0,IF(B41=B40,COUNTIF(B$9:B40,B41)+1,1)) -> 29 | AF41: 0 | AG41: 0
A42: 34 | B42: -1900 | C42: -1900-30 | V42: =IF(M$1019=1,"",IF(U42="","",VLOOKUP(U42,Tabelle!$B$4:$O$6,14,FALSE))) ->  | W42: =IF(M$1019=1,"",IF(U42="","",VLOOKUP(U42,Tabelle!$B$4:$Q$6,16,FALSE))) ->  | AE42: =IF(B42="",0,IF(B42=B41,COUNTIF(B$9:B41,B42)+1,1)) -> 30 | AF42: 0 | AG42: 0
A43: 35 | B43: -1900 | C43: -1900-31 | V43: =IF(M$1019=1,"",IF(U43="","",VLOOKUP(U43,Tabelle!$B$4:$O$6,14,FALSE))) ->  | W43: =IF(M$1019=1,"",IF(U43="","",VLOOKUP(U43,Tabelle!$B$4:$Q$6,16,FALSE))) ->  | AE43: =IF(B43="",0,IF(B43=B42,COUNTIF(B$9:B42,B43)+1,1)) -> 31 | AF43: 0 | AG43: 0
A44: 36 | B44: -1900 | C44: -1900-32 | V44: =IF(M$1019=1,"",IF(U44="","",VLOOKUP(U44,Tabelle!$B$4:$O$6,14,FALSE))) ->  | W44: =IF(M$1019=1,"",IF(U44="","",VLOOKUP(U44,Tabelle!$B$4:$Q$6,16,FALSE))) ->  | AE44: =IF(B44="",0,IF(B44=B43,COUNTIF(B$9:B43,B44)+1,1)) -> 32 | AF44: 0 | AG44: 0
A45: 37 | B45: -1900 | C45: -1900-33 | V45: =IF(M$1019=1,"",IF(U45="","",VLOOKUP(U45,Tabelle!$B$4:$O$6,14,FALSE))) ->  | W45: =IF(M$1019=1,"",IF(U45="","",VLOOKUP(U45,Tabelle!$B$4:$Q$6,16,FALSE))) ->  | AE45: =IF(B45="",0,IF(B45=B44,COUNTIF(B$9:B44,B45)+1,1)) -> 33 | AF45: 0 | AG45: 0
A46: 38 | B46: -1900 | C46: -1900-34 | V46: =IF(M$1019=1,"",IF(U46="","",VLOOKUP(U46,Tabelle!$B$4:$O$6,14,FALSE))) ->  | W46: =IF(M$1019=1,"",IF(U46="","",VLOOKUP(U46,Tabelle!$B$4:$Q$6,16,FALSE))) ->  | AE46: =IF(B46="",0,IF(B46=B45,COUNTIF(B$9:B45,B46)+1,1)) -> 34 | AF46: 0 | AG46: 0
A47: 39 | B47: -1900 | C47: -1900-35 | V47: =IF(M$1019=1,"",IF(U47="","",VLOOKUP(U47,Tabelle!$B$4:$O$6,14,FALSE))) ->  | W47: =IF(M$1019=1,"",IF(U47="","",VLOOKUP(U47,Tabelle!$B$4:$Q$6,16,FALSE))) ->  | AE47: =IF(B47="",0,IF(B47=B46,COUNTIF(B$9:B46,B47)+1,1)) -> 35 | AF47: 0 | AG47: 0
A48: 40 | B48: -1900 | C48: -1900-36 | V48: =IF(M$1019=1,"",IF(U48="","",VLOOKUP(U48,Tabelle!$B$4:$O$6,14,FALSE))) ->  | W48: =IF(M$1019=1,"",IF(U48="","",VLOOKUP(U48,Tabelle!$B$4:$Q$6,16,FALSE))) ->  | AE48: =IF(B48="",0,IF(B48=B47,COUNTIF(B$9:B47,B48)+1,1)) -> 36 | AF48: 0 | AG48: 0
A49: 41 | B49: -1900 | C49: -1900-37 | V49: =IF(M$1019=1,"",IF(U49="","",VLOOKUP(U49,Tabelle!$B$4:$O$6,14,FALSE))) ->  | W49: =IF(M$1019=1,"",IF(U49="","",VLOOKUP(U49,Tabelle!$B$4:$Q$6,16,FALSE))) ->  | AE49: =IF(B49="",0,IF(B49=B48,COUNTIF(B$9:B48,B49)+1,1)) -> 37 | AF49: 0 | AG49: 0
A50: 42 | B50: -1900 | C50: -1900-38 | V50: =IF(M$1019=1,"",IF(U50="","",VLOOKUP(U50,Tabelle!$B$4:$O$6,14,FALSE))) ->  | W50: =IF(M$1019=1,"",IF(U50="","",VLOOKUP(U50,Tabelle!$B$4:$Q$6,16,FALSE))) ->  | AE50: =IF(B50="",0,IF(B50=B49,COUNTIF(B$9:B49,B50)+1,1)) -> 38 | AF50: 0 | AG50: 0
A51: 43 | B51: -1900 | C51: -1900-39 | V51: =IF(M$1019=1,"",IF(U51="","",VLOOKUP(U51,Tabelle!$B$4:$O$6,14,FALSE))) ->  | W51: =IF(M$1019=1,"",IF(U51="","",VLOOKUP(U51,Tabelle!$B$4:$Q$6,16,FALSE))) ->  | AE51: =IF(B51="",0,IF(B51=B50,COUNTIF(B$9:B50,B51)+1,1)) -> 39 | AF51: 0 | AG51: 0
A52: 44 | B52: -1900 | C52: -1900-40 | V52: =IF(M$1019=1,"",IF(U52="","",VLOOKUP(U52,Tabelle!$B$4:$O$6,14,FALSE))) ->  | W52: =IF(M$1019=1,"",IF(U52="","",VLOOKUP(U52,Tabelle!$B$4:$Q$6,16,FALSE))) ->  | AE52: =IF(B52="",0,IF(B52=B51,COUNTIF(B$9:B51,B52)+1,1)) -> 40 | AF52: 0 | AG52: 0
A53: 45 | B53: -1900 | C53: -1900-41 | V53: =IF(M$1019=1,"",IF(U53="","",VLOOKUP(U53,Tabelle!$B$4:$O$6,14,FALSE))) ->  | W53: =IF(M$1019=1,"",IF(U53="","",VLOOKUP(U53,Tabelle!$B$4:$Q$6,16,FALSE))) ->  | AE53: =IF(B53="",0,IF(B53=B52,COUNTIF(B$9:B52,B53)+1,1)) -> 41 | AF53: 0 | AG53: 0
A54: 46 | B54: -1900 | C54: -1900-42 | V54: =IF(M$1019=1,"",IF(U54="","",VLOOKUP(U54,Tabelle!$B$4:$O$6,14,FALSE))) ->  | W54: =IF(M$1019=1,"",IF(U54="","",VLOOKUP(U54,Tabelle!$B$4:$Q$6,16,FALSE))) ->  | AE54: =IF(B54="",0,IF(B54=B53,COUNTIF(B$9:B53,B54)+1,1)) -> 42 | AF54: 0 | AG54: 0
A55: 47 | B55: -1900 | C55: -1900-43 | V55: =IF(M$1019=1,"",IF(U55="","",VLOOKUP(U55,Tabelle!$B$4:$O$6,14,FALSE))) ->  | W55: =IF(M$1019=1,"",IF(U55="","",VLOOKUP(U55,Tabelle!$B$4:$Q$6,16,FALSE))) ->  | AE55: =IF(B55="",0,IF(B55=B54,COUNTIF(B$9:B54,B55)+1,1)) -> 43 | AF55: 0 | AG55: 0
A56: 48 | B56: -1900 | C56: -1900-44 | V56: =IF(M$1019=1,"",IF(U56="","",VLOOKUP(U56,Tabelle!$B$4:$O$6,14,FALSE))) ->  | W56: =IF(M$1019=1,"",IF(U56="","",VLOOKUP(U56,Tabelle!$B$4:$Q$6,16,FALSE))) ->  | AE56: =IF(B56="",0,IF(B56=B55,COUNTIF(B$9:B55,B56)+1,1)) -> 44 | AF56: 0 | AG56: 0
A57: 49 | B57: -1900 | C57: -1900-45 | V57: =IF(M$1019=1,"",IF(U57="","",VLOOKUP(U57,Tabelle!$B$4:$O$6,14,FALSE))) ->  | W57: =IF(M$1019=1,"",IF(U57="","",VLOOKUP(U57,Tabelle!$B$4:$Q$6,16,FALSE))) ->  | AE57: =IF(B57="",0,IF(B57=B56,COUNTIF(B$9:B56,B57)+1,1)) -> 45 | AF57: 0 | AG57: 0
A58: 50 | B58: -1900 | C58: -1900-46 | V58: =IF(M$1019=1,"",IF(U58="","",VLOOKUP(U58,Tabelle!$B$4:$O$6,14,FALSE))) ->  | W58: =IF(M$1019=1,"",IF(U58="","",VLOOKUP(U58,Tabelle!$B$4:$Q$6,16,FALSE))) ->  | AE58: =IF(B58="",0,IF(B58=B57,COUNTIF(B$9:B57,B58)+1,1)) -> 46 | AF58: 0 | AG58: 0
A59: 51 | B59: -1900 | C59: -1900-47 | V59: =IF(M$1019=1,"",IF(U59="","",VLOOKUP(U59,Tabelle!$B$4:$O$6,14,FALSE))) ->  | W59: =IF(M$1019=1,"",IF(U59="","",VLOOKUP(U59,Tabelle!$B$4:$Q$6,16,FALSE))) ->  | AE59: =IF(B59="",0,IF(B59=B58,COUNTIF(B$9:B58,B59)+1,1)) -> 47 | AF59: 0 | AG59: 0
A60: 52 | B60: -1900 | C60: -1900-48 | V60: =IF(M$1019=1,"",IF(U60="","",VLOOKUP(U60,Tabelle!$B$4:$O$6,14,FALSE))) ->  | W60: =IF(M$1019=1,"",IF(U60="","",VLOOKUP(U60,Tabelle!$B$4:$Q$6,16,FALSE))) ->  | AE60: =IF(B60="",0,IF(B60=B59,COUNTIF(B$9:B59,B60)+1,1)) -> 48 | AF60: 0 | AG60: 0
A61: 53 | B61: -1900 | C61: -1900-49 | V61: =IF(M$1019=1,"",IF(U61="","",VLOOKUP(U61,Tabelle!$B$4:$O$6,14,FALSE))) ->  | W61: =IF(M$1019=1,"",IF(U61="","",VLOOKUP(U61,Tabelle!$B$4:$Q$6,16,FALSE))) ->  | AE61: =IF(B61="",0,IF(B61=B60,COUNTIF(B$9:B60,B61)+1,1)) -> 49 | AF61: 0 | AG61: 0
A62: 54 | B62: -1900 | C62: -1900-50 | V62: =IF(M$1019=1,"",IF(U62="","",VLOOKUP(U62,Tabelle!$B$4:$O$6,14,FALSE))) ->  | W62: =IF(M$1019=1,"",IF(U62="","",VLOOKUP(U62,Tabelle!$B$4:$Q$6,16,FALSE))) ->  | AE62: =IF(B62="",0,IF(B62=B61,COUNTIF(B$9:B61,B62)+1,1)) -> 50 | AF62: 0 | AG62: 0
A63: 55 | B63: -1900 | C63: -1900-51 | V63: =IF(M$1019=1,"",IF(U63="","",VLOOKUP(U63,Tabelle!$B$4:$O$6,14,FALSE))) ->  | W63: =IF(M$1019=1,"",IF(U63="","",VLOOKUP(U63,Tabelle!$B$4:$Q$6,16,FALSE))) ->  | AE63: =IF(B63="",0,IF(B63=B62,COUNTIF(B$9:B62,B63)+1,1)) -> 51 | AF63: 0 | AG63: 0
A64: 56 | B64: -1900 | C64: -1900-52 | V64: =IF(M$1019=1,"",IF(U64="","",VLOOKUP(U64,Tabelle!$B$4:$O$6,14,FALSE))) ->  | W64: =IF(M$1019=1,"",IF(U64="","",VLOOKUP(U64,Tabelle!$B$4:$Q$6,16,FALSE))) ->  | AE64: =IF(B64="",0,IF(B64=B63,COUNTIF(B$9:B63,B64)+1,1)) -> 52 | AF64: 0 | AG64: 0
A65: 57 | B65: -1900 | C65: -1900-53 | V65: =IF(M$1019=1,"",IF(U65="","",VLOOKUP(U65,Tabelle!$B$4:$O$6,14,FALSE))) ->  | W65: =IF(M$1019=1,"",IF(U65="","",VLOOKUP(U65,Tabelle!$B$4:$Q$6,16,FALSE))) ->  | AE65: =IF(B65="",0,IF(B65=B64,COUNTIF(B$9:B64,B65)+1,1)) -> 53 | AF65: 0 | AG65: 0
A66: 58 | B66: -1900 | C66: -1900-54 | V66: =IF(M$1019=1,"",IF(U66="","",VLOOKUP(U66,Tabelle!$B$4:$O$6,14,FALSE))) ->  | W66: =IF(M$1019=1,"",IF(U66="","",VLOOKUP(U66,Tabelle!$B$4:$Q$6,16,FALSE))) ->  | AE66: =IF(B66="",0,IF(B66=B65,COUNTIF(B$9:B65,B66)+1,1)) -> 54 | AF66: 0 | AG66: 0
A67: 59 | B67: -1900 | C67: -1900-55 | V67: =IF(M$1019=1,"",IF(U67="","",VLOOKUP(U67,Tabelle!$B$4:$O$6,14,FALSE))) ->  | W67: =IF(M$1019=1,"",IF(U67="","",VLOOKUP(U67,Tabelle!$B$4:$Q$6,16,FALSE))) ->  | AE67: =IF(B67="",0,IF(B67=B66,COUNTIF(B$9:B66,B67)+1,1)) -> 55 | AF67: 0 | AG67: 0
A68: 60 | B68: -1900 | C68: -1900-56 | V68: =IF(M$1019=1,"",IF(U68="","",VLOOKUP(U68,Tabelle!$B$4:$O$6,14,FALSE))) ->  | W68: =IF(M$1019=1,"",IF(U68="","",VLOOKUP(U68,Tabelle!$B$4:$Q$6,16,FALSE))) ->  | AE68: =IF(B68="",0,IF(B68=B67,COUNTIF(B$9:B67,B68)+1,1)) -> 56 | AF68: 0 | AG68: 0
A69: 61 | B69: -1900 | C69: -1900-57 | V69: =IF(M$1019=1,"",IF(U69="","",VLOOKUP(U69,Tabelle!$B$4:$O$6,14,FALSE))) ->  | W69: =IF(M$1019=1,"",IF(U69="","",VLOOKUP(U69,Tabelle!$B$4:$Q$6,16,FALSE))) ->  | AE69: =IF(B69="",0,IF(B69=B68,COUNTIF(B$9:B68,B69)+1,1)) -> 57 | AF69: 0 | AG69: 0
A70: 62 | B70: -1900 | C70: -1900-58 | V70: =IF(M$1019=1,"",IF(U70="","",VLOOKUP(U70,Tabelle!$B$4:$O$6,14,FALSE))) ->  | W70: =IF(M$1019=1,"",IF(U70="","",VLOOKUP(U70,Tabelle!$B$4:$Q$6,16,FALSE))) ->  | AE70: =IF(B70="",0,IF(B70=B69,COUNTIF(B$9:B69,B70)+1,1)) -> 58 | AF70: 0 | AG70: 0
A71: 63 | B71: -1900 | C71: -1900-59 | V71: =IF(M$1019=1,"",IF(U71="","",VLOOKUP(U71,Tabelle!$B$4:$O$6,14,FALSE))) ->  | W71: =IF(M$1019=1,"",IF(U71="","",VLOOKUP(U71,Tabelle!$B$4:$Q$6,16,FALSE))) ->  | AE71: =IF(B71="",0,IF(B71=B70,COUNTIF(B$9:B70,B71)+1,1)) -> 59 | AF71: 0 | AG71: 0
A72: 64 | B72: -1900 | C72: -1900-60 | V72: =IF(M$1019=1,"",IF(U72="","",VLOOKUP(U72,Tabelle!$B$4:$O$6,14,FALSE))) ->  | W72: =IF(M$1019=1,"",IF(U72="","",VLOOKUP(U72,Tabelle!$B$4:$Q$6,16,FALSE))) ->  | AE72: =IF(B72="",0,IF(B72=B71,COUNTIF(B$9:B71,B72)+1,1)) -> 60 | AF72: 0 | AG72: 0
A73: 65 | B73: -1900 | C73: =IF(M$1019=1,0,B73&"-"&AE73) -> -1900-61 | V73: =IF(M$1019=1,"",IF(U73="","",VLOOKUP(U73,Tabelle!$B$4:$O$6,14,FALSE))) ->  | W73: =IF(M$1019=1,"",IF(U73="","",VLOOKUP(U73,Tabelle!$B$4:$Q$6,16,FALSE))) ->  | AE73: =IF(B73="",0,IF(B73=B72,COUNTIF(B$9:B72,B73)+1,1)) -> 61 | AF73: 0 | AG73: 0
A74: 66 | B74: =IF(AG74=$AG$1013,0,IF(M$1019=1,0,D74&"-"&YEAR(E74))) -> -1900 | C74: -1900-62 | V74: =IF(M$1019=1,"",IF(U74="","",VLOOKUP(U74,Tabelle!$B$4:$O$6,14,FALSE))) ->  | W74: =IF(M$1019=1,"",IF(U74="","",VLOOKUP(U74,Tabelle!$B$4:$Q$6,16,FALSE))) ->  | AE74: =IF(B74="",0,IF(B74=B73,COUNTIF(B$9:B73,B74)+1,1)) -> 62 | AF74: 0 | AG74: =IF(E74>0,IF(OR(MONTH(E74)<$L$1030,MONTH(E74)>$L$1031),AG$1013,0),0) -> 0
A75: 67 | B75: -1900 | C75: -1900-63 | V75: =IF(M$1019=1,"",IF(U75="","",VLOOKUP(U75,Tabelle!$B$4:$O$6,14,FALSE))) ->  | W75: =IF(M$1019=1,"",IF(U75="","",VLOOKUP(U75,Tabelle!$B$4:$Q$6,16,FALSE))) ->  | AE75: =IF(B75="",0,IF(B75=B74,COUNTIF(B$9:B74,B75)+1,1)) -> 63 | AF75: 0 | AG75: 0
A76: 68 | B76: -1900 | C76: -1900-64 | V76: =IF(M$1019=1,"",IF(U76="","",VLOOKUP(U76,Tabelle!$B$4:$O$6,14,FALSE))) ->  | W76: =IF(M$1019=1,"",IF(U76="","",VLOOKUP(U76,Tabelle!$B$4:$Q$6,16,FALSE))) ->  | AE76: =IF(B76="",0,IF(B76=B75,COUNTIF(B$9:B75,B76)+1,1)) -> 64 | AF76: 0 | AG76: 0
A77: 69 | B77: -1900 | C77: -1900-65 | V77: =IF(M$1019=1,"",IF(U77="","",VLOOKUP(U77,Tabelle!$B$4:$O$6,14,FALSE))) ->  | W77: =IF(M$1019=1,"",IF(U77="","",VLOOKUP(U77,Tabelle!$B$4:$Q$6,16,FALSE))) ->  | AE77: =IF(B77="",0,IF(B77=B76,COUNTIF(B$9:B76,B77)+1,1)) -> 65 | AF77: 0 | AG77: 0
A78: 70 | B78: -1900 | C78: -1900-66 | V78: =IF(M$1019=1,"",IF(U78="","",VLOOKUP(U78,Tabelle!$B$4:$O$6,14,FALSE))) ->  | W78: =IF(M$1019=1,"",IF(U78="","",VLOOKUP(U78,Tabelle!$B$4:$Q$6,16,FALSE))) ->  | AE78: =IF(B78="",0,IF(B78=B77,COUNTIF(B$9:B77,B78)+1,1)) -> 66 | AF78: 0 | AG78: 0
A79: 71 | B79: -1900 | C79: -1900-67 | V79: =IF(M$1019=1,"",IF(U79="","",VLOOKUP(U79,Tabelle!$B$4:$O$6,14,FALSE))) ->  | W79: =IF(M$1019=1,"",IF(U79="","",VLOOKUP(U79,Tabelle!$B$4:$Q$6,16,FALSE))) ->  | AE79: =IF(B79="",0,IF(B79=B78,COUNTIF(B$9:B78,B79)+1,1)) -> 67 | AF79: 0 | AG79: 0
A80: 72 | B80: -1900 | C80: -1900-68 | V80: =IF(M$1019=1,"",IF(U80="","",VLOOKUP(U80,Tabelle!$B$4:$O$6,14,FALSE))) ->  | W80: =IF(M$1019=1,"",IF(U80="","",VLOOKUP(U80,Tabelle!$B$4:$Q$6,16,FALSE))) ->  | AE80: =IF(B80="",0,IF(B80=B79,COUNTIF(B$9:B79,B80)+1,1)) -> 68 | AF80: 0 | AG80: 0
A81: 73 | B81: -1900 | C81: -1900-69 | V81: =IF(M$1019=1,"",IF(U81="","",VLOOKUP(U81,Tabelle!$B$4:$O$6,14,FALSE))) ->  | W81: =IF(M$1019=1,"",IF(U81="","",VLOOKUP(U81,Tabelle!$B$4:$Q$6,16,FALSE))) ->  | AE81: =IF(B81="",0,IF(B81=B80,COUNTIF(B$9:B80,B81)+1,1)) -> 69 | AF81: 0 | AG81: 0
A82: 74 | B82: -1900 | C82: -1900-70 | V82: =IF(M$1019=1,"",IF(U82="","",VLOOKUP(U82,Tabelle!$B$4:$O$6,14,FALSE))) ->  | W82: =IF(M$1019=1,"",IF(U82="","",VLOOKUP(U82,Tabelle!$B$4:$Q$6,16,FALSE))) ->  | AE82: =IF(B82="",0,IF(B82=B81,COUNTIF(B$9:B81,B82)+1,1)) -> 70 | AF82: 0 | AG82: 0
A83: 75 | B83: -1900 | C83: -1900-71 | V83: =IF(M$1019=1,"",IF(U83="","",VLOOKUP(U83,Tabelle!$B$4:$O$6,14,FALSE))) ->  | W83: =IF(M$1019=1,"",IF(U83="","",VLOOKUP(U83,Tabelle!$B$4:$Q$6,16,FALSE))) ->  | AE83: =IF(B83="",0,IF(B83=B82,COUNTIF(B$9:B82,B83)+1,1)) -> 71 | AF83: 0 | AG83: 0
A84: 76 | B84: -1900 | C84: -1900-72 | V84: =IF(M$1019=1,"",IF(U84="","",VLOOKUP(U84,Tabelle!$B$4:$O$6,14,FALSE))) ->  | W84: =IF(M$1019=1,"",IF(U84="","",VLOOKUP(U84,Tabelle!$B$4:$Q$6,16,FALSE))) ->  | AE84: =IF(B84="",0,IF(B84=B83,COUNTIF(B$9:B83,B84)+1,1)) -> 72 | AF84: =IF(OR(D84="",M$1019=1),0,IF(AE84=8,1,0)) -> 0 | AG84: 0
A85: 77 | B85: -1900 | C85: -1900-73 | V85: =IF(M$1019=1,"",IF(U85="","",VLOOKUP(U85,Tabelle!$B$4:$O$6,14,FALSE))) ->  | W85: =IF(M$1019=1,"",IF(U85="","",VLOOKUP(U85,Tabelle!$B$4:$Q$6,16,FALSE))) ->  | AE85: =IF(B85="",0,IF(B85=B84,COUNTIF(B$9:B84,B85)+1,1)) -> 73 | AF85: 0 | AG85: 0
A86: 78 | B86: -1900 | C86: -1900-74 | V86: =IF(M$1019=1,"",IF(U86="","",VLOOKUP(U86,Tabelle!$B$4:$O$6,14,FALSE))) ->  | W86: =IF(M$1019=1,"",IF(U86="","",VLOOKUP(U86,Tabelle!$B$4:$Q$6,16,FALSE))) ->  | AE86: =IF(B86="",0,IF(B86=B85,COUNTIF(B$9:B85,B86)+1,1)) -> 74 | AF86: 0 | AG86: 0
A87: 79 | B87: -1900 | C87: -1900-75 | V87: =IF(M$1019=1,"",IF(U87="","",VLOOKUP(U87,Tabelle!$B$4:$O$6,14,FALSE))) ->  | W87: =IF(M$1019=1,"",IF(U87="","",VLOOKUP(U87,Tabelle!$B$4:$Q$6,16,FALSE))) ->  | AE87: =IF(B87="",0,IF(B87=B86,COUNTIF(B$9:B86,B87)+1,1)) -> 75 | AF87: 0 | AG87: 0
A88: 80 | B88: -1900 | C88: -1900-76 | V88: =IF(M$1019=1,"",IF(U88="","",VLOOKUP(U88,Tabelle!$B$4:$O$6,14,FALSE))) ->  | W88: =IF(M$1019=1,"",IF(U88="","",VLOOKUP(U88,Tabelle!$B$4:$Q$6,16,FALSE))) ->  | AE88: =IF(B88="",0,IF(B88=B87,COUNTIF(B$9:B87,B88)+1,1)) -> 76 | AF88: 0 | AG88: 0
A89: 81 | B89: -1900 | C89: -1900-77 | V89: =IF(M$1019=1,"",IF(U89="","",VLOOKUP(U89,Tabelle!$B$4:$O$6,14,FALSE))) ->  | W89: =IF(M$1019=1,"",IF(U89="","",VLOOKUP(U89,Tabelle!$B$4:$Q$6,16,FALSE))) ->  | AE89: =IF(B89="",0,IF(B89=B88,COUNTIF(B$9:B88,B89)+1,1)) -> 77 | AF89: 0 | AG89: 0
A90: 82 | B90: -1900 | C90: -1900-78 | V90: =IF(M$1019=1,"",IF(U90="","",VLOOKUP(U90,Tabelle!$B$4:$O$6,14,FALSE))) ->  | W90: =IF(M$1019=1,"",IF(U90="","",VLOOKUP(U90,Tabelle!$B$4:$Q$6,16,FALSE))) ->  | AE90: =IF(B90="",0,IF(B90=B89,COUNTIF(B$9:B89,B90)+1,1)) -> 78 | AF90: 0 | AG90: 0
A91: 83 | B91: -1900 | C91: -1900-79 | V91: =IF(M$1019=1,"",IF(U91="","",VLOOKUP(U91,Tabelle!$B$4:$O$6,14,FALSE))) ->  | W91: =IF(M$1019=1,"",IF(U91="","",VLOOKUP(U91,Tabelle!$B$4:$Q$6,16,FALSE))) ->  | AE91: =IF(B91="",0,IF(B91=B90,COUNTIF(B$9:B90,B91)+1,1)) -> 79 | AF91: 0 | AG91: 0
A92: 84 | B92: -1900 | C92: -1900-80 | V92: =IF(M$1019=1,"",IF(U92="","",VLOOKUP(U92,Tabelle!$B$4:$O$6,14,FALSE))) ->  | W92: =IF(M$1019=1,"",IF(U92="","",VLOOKUP(U92,Tabelle!$B$4:$Q$6,16,FALSE))) ->  | AE92: =IF(B92="",0,IF(B92=B91,COUNTIF(B$9:B91,B92)+1,1)) -> 80 | AF92: 0 | AG92: 0
A93: 85 | B93: -1900 | C93: -1900-81 | V93: =IF(M$1019=1,"",IF(U93="","",VLOOKUP(U93,Tabelle!$B$4:$O$6,14,FALSE))) ->  | W93: =IF(M$1019=1,"",IF(U93="","",VLOOKUP(U93,Tabelle!$B$4:$Q$6,16,FALSE))) ->  | AE93: =IF(B93="",0,IF(B93=B92,COUNTIF(B$9:B92,B93)+1,1)) -> 81 | AF93: 0 | AG93: 0
A94: 86 | B94: -1900 | C94: -1900-82 | V94: =IF(M$1019=1,"",IF(U94="","",VLOOKUP(U94,Tabelle!$B$4:$O$6,14,FALSE))) ->  | W94: =IF(M$1019=1,"",IF(U94="","",VLOOKUP(U94,Tabelle!$B$4:$Q$6,16,FALSE))) ->  | AE94: =IF(B94="",0,IF(B94=B93,COUNTIF(B$9:B93,B94)+1,1)) -> 82 | AF94: 0 | AG94: 0
A95: 87 | B95: -1900 | C95: -1900-83 | V95: =IF(M$1019=1,"",IF(U95="","",VLOOKUP(U95,Tabelle!$B$4:$O$6,14,FALSE))) ->  | W95: =IF(M$1019=1,"",IF(U95="","",VLOOKUP(U95,Tabelle!$B$4:$Q$6,16,FALSE))) ->  | AE95: =IF(B95="",0,IF(B95=B94,COUNTIF(B$9:B94,B95)+1,1)) -> 83 | AF95: 0 | AG95: 0
A96: 88 | B96: -1900 | C96: -1900-84 | V96: =IF(M$1019=1,"",IF(U96="","",VLOOKUP(U96,Tabelle!$B$4:$O$6,14,FALSE))) ->  | W96: =IF(M$1019=1,"",IF(U96="","",VLOOKUP(U96,Tabelle!$B$4:$Q$6,16,FALSE))) ->  | AE96: =IF(B96="",0,IF(B96=B95,COUNTIF(B$9:B95,B96)+1,1)) -> 84 | AF96: 0 | AG96: 0
A97: 89 | B97: -1900 | C97: -1900-85 | V97: =IF(M$1019=1,"",IF(U97="","",VLOOKUP(U97,Tabelle!$B$4:$O$6,14,FALSE))) ->  | W97: =IF(M$1019=1,"",IF(U97="","",VLOOKUP(U97,Tabelle!$B$4:$Q$6,16,FALSE))) ->  | AE97: =IF(B97="",0,IF(B97=B96,COUNTIF(B$9:B96,B97)+1,1)) -> 85 | AF97: 0 | AG97: 0
A98: 90 | B98: -1900 | C98: -1900-86 | V98: =IF(M$1019=1,"",IF(U98="","",VLOOKUP(U98,Tabelle!$B$4:$O$6,14,FALSE))) ->  | W98: =IF(M$1019=1,"",IF(U98="","",VLOOKUP(U98,Tabelle!$B$4:$Q$6,16,FALSE))) ->  | AE98: =IF(B98="",0,IF(B98=B97,COUNTIF(B$9:B97,B98)+1,1)) -> 86 | AF98: 0 | AG98: 0
A99: 91 | B99: -1900 | C99: -1900-87 | V99: =IF(M$1019=1,"",IF(U99="","",VLOOKUP(U99,Tabelle!$B$4:$O$6,14,FALSE))) ->  | W99: =IF(M$1019=1,"",IF(U99="","",VLOOKUP(U99,Tabelle!$B$4:$Q$6,16,FALSE))) ->  | AE99: =IF(B99="",0,IF(B99=B98,COUNTIF(B$9:B98,B99)+1,1)) -> 87 | AF99: 0 | AG99: 0
A100: 92 | B100: -1900 | C100: -1900-88 | V100: =IF(M$1019=1,"",IF(U100="","",VLOOKUP(U100,Tabelle!$B$4:$O$6,14,FALSE))) ->  | W100: =IF(M$1019=1,"",IF(U100="","",VLOOKUP(U100,Tabelle!$B$4:$Q$6,16,FALSE))) ->  | AE100: =IF(B100="",0,IF(B100=B99,COUNTIF(B$9:B99,B100)+1,1)) -> 88 | AF100: 0 | AG100: 0
A101: 93 | B101: -1900 | C101: -1900-89 | V101: =IF(M$1019=1,"",IF(U101="","",VLOOKUP(U101,Tabelle!$B$4:$O$6,14,FALSE))) ->  | W101: =IF(M$1019=1,"",IF(U101="","",VLOOKUP(U101,Tabelle!$B$4:$Q$6,16,FALSE))) ->  | AE101: =IF(B101="",0,IF(B101=B100,COUNTIF(B$9:B100,B101)+1,1)) -> 89 | AF101: 0 | AG101: 0
A102: 94 | B102: -1900 | C102: -1900-90 | V102: =IF(M$1019=1,"",IF(U102="","",VLOOKUP(U102,Tabelle!$B$4:$O$6,14,FALSE))) ->  | W102: =IF(M$1019=1,"",IF(U102="","",VLOOKUP(U102,Tabelle!$B$4:$Q$6,16,FALSE))) ->  | AE102: =IF(B102="",0,IF(B102=B101,COUNTIF(B$9:B101,B102)+1,1)) -> 90 | AF102: 0 | AG102: 0
A103: 95 | B103: -1900 | C103: -1900-91 | V103: =IF(M$1019=1,"",IF(U103="","",VLOOKUP(U103,Tabelle!$B$4:$O$6,14,FALSE))) ->  | W103: =IF(M$1019=1,"",IF(U103="","",VLOOKUP(U103,Tabelle!$B$4:$Q$6,16,FALSE))) ->  | AE103: =IF(B103="",0,IF(B103=B102,COUNTIF(B$9:B102,B103)+1,1)) -> 91 | AF103: 0 | AG103: 0
A104: 96 | B104: -1900 | C104: -1900-92 | V104: =IF(M$1019=1,"",IF(U104="","",VLOOKUP(U104,Tabelle!$B$4:$O$6,14,FALSE))) ->  | W104: =IF(M$1019=1,"",IF(U104="","",VLOOKUP(U104,Tabelle!$B$4:$Q$6,16,FALSE))) ->  | AE104: =IF(B104="",0,IF(B104=B103,COUNTIF(B$9:B103,B104)+1,1)) -> 92 | AF104: 0 | AG104: 0
A105: 97 | B105: -1900 | C105: -1900-93 | V105: =IF(M$1019=1,"",IF(U105="","",VLOOKUP(U105,Tabelle!$B$4:$O$6,14,FALSE))) ->  | W105: =IF(M$1019=1,"",IF(U105="","",VLOOKUP(U105,Tabelle!$B$4:$Q$6,16,FALSE))) ->  | AE105: =IF(B105="",0,IF(B105=B104,COUNTIF(B$9:B104,B105)+1,1)) -> 93 | AF105: 0 | AG105: 0
A106: 98 | B106: -1900 | C106: -1900-94 | V106: =IF(M$1019=1,"",IF(U106="","",VLOOKUP(U106,Tabelle!$B$4:$O$6,14,FALSE))) ->  | W106: =IF(M$1019=1,"",IF(U106="","",VLOOKUP(U106,Tabelle!$B$4:$Q$6,16,FALSE))) ->  | AE106: =IF(B106="",0,IF(B106=B105,COUNTIF(B$9:B105,B106)+1,1)) -> 94 | AF106: 0 | AG106: 0
A107: 99 | B107: -1900 | C107: -1900-95 | V107: =IF(M$1019=1,"",IF(U107="","",VLOOKUP(U107,Tabelle!$B$4:$O$6,14,FALSE))) ->  | W107: =IF(M$1019=1,"",IF(U107="","",VLOOKUP(U107,Tabelle!$B$4:$Q$6,16,FALSE))) ->  | AE107: =IF(B107="",0,IF(B107=B106,COUNTIF(B$9:B106,B107)+1,1)) -> 95 | AF107: 0 | AG107: 0
A108: 100 | B108: -1900 | C108: -1900-96 | V108: =IF(M$1019=1,"",IF(U108="","",VLOOKUP(U108,Tabelle!$B$4:$O$6,14,FALSE))) ->  | W108: =IF(M$1019=1,"",IF(U108="","",VLOOKUP(U108,Tabelle!$B$4:$Q$6,16,FALSE))) ->  | AE108: =IF(B108="",0,IF(B108=B107,COUNTIF(B$9:B107,B108)+1,1)) -> 96 | AF108: 0 | AG108: 0
A109: 101 | B109: -1900 | C109: -1900-97 | V109: =IF(M$1019=1,"",IF(U109="","",VLOOKUP(U109,Tabelle!$B$4:$O$6,14,FALSE))) ->  | W109: =IF(M$1019=1,"",IF(U109="","",VLOOKUP(U109,Tabelle!$B$4:$Q$6,16,FALSE))) ->  | AE109: =IF(B109="",0,IF(B109=B108,COUNTIF(B$9:B108,B109)+1,1)) -> 97 | AF109: 0 | AG109: 0
A110: 102 | B110: -1900 | C110: -1900-98 | V110: =IF(M$1019=1,"",IF(U110="","",VLOOKUP(U110,Tabelle!$B$4:$O$6,14,FALSE))) ->  | W110: =IF(M$1019=1,"",IF(U110="","",VLOOKUP(U110,Tabelle!$B$4:$Q$6,16,FALSE))) ->  | AE110: =IF(B110="",0,IF(B110=B109,COUNTIF(B$9:B109,B110)+1,1)) -> 98 | AF110: 0 | AG110: 0
A111: 103 | B111: -1900 | C111: -1900-99 | V111: =IF(M$1019=1,"",IF(U111="","",VLOOKUP(U111,Tabelle!$B$4:$O$6,14,FALSE))) ->  | W111: =IF(M$1019=1,"",IF(U111="","",VLOOKUP(U111,Tabelle!$B$4:$Q$6,16,FALSE))) ->  | AE111: =IF(B111="",0,IF(B111=B110,COUNTIF(B$9:B110,B111)+1,1)) -> 99 | AF111: 0 | AG111: 0
A112: 104 | B112: -1900 | C112: -1900-100 | V112: =IF(M$1019=1,"",IF(U112="","",VLOOKUP(U112,Tabelle!$B$4:$O$6,14,FALSE))) ->  | W112: =IF(M$1019=1,"",IF(U112="","",VLOOKUP(U112,Tabelle!$B$4:$Q$6,16,FALSE))) ->  | AE112: =IF(B112="",0,IF(B112=B111,COUNTIF(B$9:B111,B112)+1,1)) -> 100 | AF112: 0 | AG112: 0
A113: 105 | B113: -1900 | C113: -1900-101 | V113: =IF(M$1019=1,"",IF(U113="","",VLOOKUP(U113,Tabelle!$B$4:$O$6,14,FALSE))) ->  | W113: =IF(M$1019=1,"",IF(U113="","",VLOOKUP(U113,Tabelle!$B$4:$Q$6,16,FALSE))) ->  | AE113: =IF(B113="",0,IF(B113=B112,COUNTIF(B$9:B112,B113)+1,1)) -> 101 | AF113: 0 | AG113: 0
A114: 106 | B114: -1900 | C114: -1900-102 | V114: =IF(M$1019=1,"",IF(U114="","",VLOOKUP(U114,Tabelle!$B$4:$O$6,14,FALSE))) ->  | W114: =IF(M$1019=1,"",IF(U114="","",VLOOKUP(U114,Tabelle!$B$4:$Q$6,16,FALSE))) ->  | AE114: =IF(B114="",0,IF(B114=B113,COUNTIF(B$9:B113,B114)+1,1)) -> 102 | AF114: 0 | AG114: 0
A115: 107 | B115: -1900 | C115: -1900-103 | V115: =IF(M$1019=1,"",IF(U115="","",VLOOKUP(U115,Tabelle!$B$4:$O$6,14,FALSE))) ->  | W115: =IF(M$1019=1,"",IF(U115="","",VLOOKUP(U115,Tabelle!$B$4:$Q$6,16,FALSE))) ->  | AE115: =IF(B115="",0,IF(B115=B114,COUNTIF(B$9:B114,B115)+1,1)) -> 103 | AF115: 0 | AG115: 0
A116: 108 | B116: -1900 | C116: -1900-104 | V116: =IF(M$1019=1,"",IF(U116="","",VLOOKUP(U116,Tabelle!$B$4:$O$6,14,FALSE))) ->  | W116: =IF(M$1019=1,"",IF(U116="","",VLOOKUP(U116,Tabelle!$B$4:$Q$6,16,FALSE))) ->  | AE116: =IF(B116="",0,IF(B116=B115,COUNTIF(B$9:B115,B116)+1,1)) -> 104 | AF116: 0 | AG116: 0
A117: 109 | B117: -1900 | C117: -1900-105 | V117: =IF(M$1019=1,"",IF(U117="","",VLOOKUP(U117,Tabelle!$B$4:$O$6,14,FALSE))) ->  | W117: =IF(M$1019=1,"",IF(U117="","",VLOOKUP(U117,Tabelle!$B$4:$Q$6,16,FALSE))) ->  | AE117: =IF(B117="",0,IF(B117=B116,COUNTIF(B$9:B116,B117)+1,1)) -> 105 | AF117: 0 | AG117: 0
A118: 110 | B118: -1900 | C118: -1900-106 | V118: =IF(M$1019=1,"",IF(U118="","",VLOOKUP(U118,Tabelle!$B$4:$O$6,14,FALSE))) ->  | W118: =IF(M$1019=1,"",IF(U118="","",VLOOKUP(U118,Tabelle!$B$4:$Q$6,16,FALSE))) ->  | AE118: =IF(B118="",0,IF(B118=B117,COUNTIF(B$9:B117,B118)+1,1)) -> 106 | AF118: 0 | AG118: 0
A119: 111 | B119: -1900 | C119: -1900-107 | V119: =IF(M$1019=1,"",IF(U119="","",VLOOKUP(U119,Tabelle!$B$4:$O$6,14,FALSE))) ->  | W119: =IF(M$1019=1,"",IF(U119="","",VLOOKUP(U119,Tabelle!$B$4:$Q$6,16,FALSE))) ->  | AE119: =IF(B119="",0,IF(B119=B118,COUNTIF(B$9:B118,B119)+1,1)) -> 107 | AF119: 0 | AG119: 0
A120: 112 | B120: -1900 | C120: -1900-108 | V120: =IF(M$1019=1,"",IF(U120="","",VLOOKUP(U120,Tabelle!$B$4:$O$6,14,FALSE))) ->  | W120: =IF(M$1019=1,"",IF(U120="","",VLOOKUP(U120,Tabelle!$B$4:$Q$6,16,FALSE))) ->  | AE120: =IF(B120="",0,IF(B120=B119,COUNTIF(B$9:B119,B120)+1,1)) -> 108 | AF120: 0 | AG120: 0
A121: 113 | B121: -1900 | C121: -1900-109 | V121: =IF(M$1019=1,"",IF(U121="","",VLOOKUP(U121,Tabelle!$B$4:$O$6,14,FALSE))) ->  | W121: =IF(M$1019=1,"",IF(U121="","",VLOOKUP(U121,Tabelle!$B$4:$Q$6,16,FALSE))) ->  | AE121: =IF(B121="",0,IF(B121=B120,COUNTIF(B$9:B120,B121)+1,1)) -> 109 | AF121: 0 | AG121: 0
A122: 114 | B122: -1900 | C122: -1900-110 | V122: =IF(M$1019=1,"",IF(U122="","",VLOOKUP(U122,Tabelle!$B$4:$O$6,14,FALSE))) ->  | W122: =IF(M$1019=1,"",IF(U122="","",VLOOKUP(U122,Tabelle!$B$4:$Q$6,16,FALSE))) ->  | AE122: =IF(B122="",0,IF(B122=B121,COUNTIF(B$9:B121,B122)+1,1)) -> 110 | AF122: 0 | AG122: 0
A123: 115 | B123: -1900 | C123: -1900-111 | V123: =IF(M$1019=1,"",IF(U123="","",VLOOKUP(U123,Tabelle!$B$4:$O$6,14,FALSE))) ->  | W123: =IF(M$1019=1,"",IF(U123="","",VLOOKUP(U123,Tabelle!$B$4:$Q$6,16,FALSE))) ->  | AE123: =IF(B123="",0,IF(B123=B122,COUNTIF(B$9:B122,B123)+1,1)) -> 111 | AF123: 0 | AG123: 0
A124: 116 | B124: -1900 | C124: -1900-112 | V124: =IF(M$1019=1,"",IF(U124="","",VLOOKUP(U124,Tabelle!$B$4:$O$6,14,FALSE))) ->  | W124: =IF(M$1019=1,"",IF(U124="","",VLOOKUP(U124,Tabelle!$B$4:$Q$6,16,FALSE))) ->  | AE124: =IF(B124="",0,IF(B124=B123,COUNTIF(B$9:B123,B124)+1,1)) -> 112 | AF124: 0 | AG124: 0
A125: 117 | B125: -1900 | C125: -1900-113 | V125: =IF(M$1019=1,"",IF(U125="","",VLOOKUP(U125,Tabelle!$B$4:$O$6,14,FALSE))) ->  | W125: =IF(M$1019=1,"",IF(U125="","",VLOOKUP(U125,Tabelle!$B$4:$Q$6,16,FALSE))) ->  | AE125: =IF(B125="",0,IF(B125=B124,COUNTIF(B$9:B124,B125)+1,1)) -> 113 | AF125: 0 | AG125: 0
A126: 118 | B126: -1900 | C126: -1900-114 | V126: =IF(M$1019=1,"",IF(U126="","",VLOOKUP(U126,Tabelle!$B$4:$O$6,14,FALSE))) ->  | W126: =IF(M$1019=1,"",IF(U126="","",VLOOKUP(U126,Tabelle!$B$4:$Q$6,16,FALSE))) ->  | AE126: =IF(B126="",0,IF(B126=B125,COUNTIF(B$9:B125,B126)+1,1)) -> 114 | AF126: 0 | AG126: 0
A127: 119 | B127: -1900 | C127: -1900-115 | V127: =IF(M$1019=1,"",IF(U127="","",VLOOKUP(U127,Tabelle!$B$4:$O$6,14,FALSE))) ->  | W127: =IF(M$1019=1,"",IF(U127="","",VLOOKUP(U127,Tabelle!$B$4:$Q$6,16,FALSE))) ->  | AE127: =IF(B127="",0,IF(B127=B126,COUNTIF(B$9:B126,B127)+1,1)) -> 115 | AF127: 0 | AG127: 0
A128: 120 | B128: -1900 | C128: -1900-116 | V128: =IF(M$1019=1,"",IF(U128="","",VLOOKUP(U128,Tabelle!$B$4:$O$6,14,FALSE))) ->  | W128: =IF(M$1019=1,"",IF(U128="","",VLOOKUP(U128,Tabelle!$B$4:$Q$6,16,FALSE))) ->  | AE128: =IF(B128="",0,IF(B128=B127,COUNTIF(B$9:B127,B128)+1,1)) -> 116 | AF128: 0 | AG128: 0
A129: 121 | B129: -1900 | C129: -1900-117 | V129: =IF(M$1019=1,"",IF(U129="","",VLOOKUP(U129,Tabelle!$B$4:$O$6,14,FALSE))) ->  | W129: =IF(M$1019=1,"",IF(U129="","",VLOOKUP(U129,Tabelle!$B$4:$Q$6,16,FALSE))) ->  | AE129: =IF(B129="",0,IF(B129=B128,COUNTIF(B$9:B128,B129)+1,1)) -> 117 | AF129: 0 | AG129: 0
A130: 122 | B130: -1900 | C130: -1900-118 | V130: =IF(M$1019=1,"",IF(U130="","",VLOOKUP(U130,Tabelle!$B$4:$O$6,14,FALSE))) ->  | W130: =IF(M$1019=1,"",IF(U130="","",VLOOKUP(U130,Tabelle!$B$4:$Q$6,16,FALSE))) ->  | AE130: =IF(B130="",0,IF(B130=B129,COUNTIF(B$9:B129,B130)+1,1)) -> 118 | AF130: 0 | AG130: 0
A131: 123 | B131: -1900 | C131: -1900-119 | V131: =IF(M$1019=1,"",IF(U131="","",VLOOKUP(U131,Tabelle!$B$4:$O$6,14,FALSE))) ->  | W131: =IF(M$1019=1,"",IF(U131="","",VLOOKUP(U131,Tabelle!$B$4:$Q$6,16,FALSE))) ->  | AE131: =IF(B131="",0,IF(B131=B130,COUNTIF(B$9:B130,B131)+1,1)) -> 119 | AF131: 0 | AG131: 0
A132: 124 | B132: -1900 | C132: -1900-120 | V132: =IF(M$1019=1,"",IF(U132="","",VLOOKUP(U132,Tabelle!$B$4:$O$6,14,FALSE))) ->  | W132: =IF(M$1019=1,"",IF(U132="","",VLOOKUP(U132,Tabelle!$B$4:$Q$6,16,FALSE))) ->  | AE132: =IF(B132="",0,IF(B132=B131,COUNTIF(B$9:B131,B132)+1,1)) -> 120 | AF132: 0 | AG132: 0
A133: 125 | B133: -1900 | C133: -1900-121 | V133: =IF(M$1019=1,"",IF(U133="","",VLOOKUP(U133,Tabelle!$B$4:$O$6,14,FALSE))) ->  | W133: =IF(M$1019=1,"",IF(U133="","",VLOOKUP(U133,Tabelle!$B$4:$Q$6,16,FALSE))) ->  | AE133: =IF(B133="",0,IF(B133=B132,COUNTIF(B$9:B132,B133)+1,1)) -> 121 | AF133: 0 | AG133: 0
A134: 126 | B134: -1900 | C134: -1900-122 | V134: =IF(M$1019=1,"",IF(U134="","",VLOOKUP(U134,Tabelle!$B$4:$O$6,14,FALSE))) ->  | W134: =IF(M$1019=1,"",IF(U134="","",VLOOKUP(U134,Tabelle!$B$4:$Q$6,16,FALSE))) ->  | AE134: =IF(B134="",0,IF(B134=B133,COUNTIF(B$9:B133,B134)+1,1)) -> 122 | AF134: 0 | AG134: 0
A135: 127 | B135: -1900 | C135: -1900-123 | V135: =IF(M$1019=1,"",IF(U135="","",VLOOKUP(U135,Tabelle!$B$4:$O$6,14,FALSE))) ->  | W135: =IF(M$1019=1,"",IF(U135="","",VLOOKUP(U135,Tabelle!$B$4:$Q$6,16,FALSE))) ->  | AE135: =IF(B135="",0,IF(B135=B134,COUNTIF(B$9:B134,B135)+1,1)) -> 123 | AF135: 0 | AG135: 0
A136: 128 | B136: -1900 | C136: -1900-124 | V136: =IF(M$1019=1,"",IF(U136="","",VLOOKUP(U136,Tabelle!$B$4:$O$6,14,FALSE))) ->  | W136: =IF(M$1019=1,"",IF(U136="","",VLOOKUP(U136,Tabelle!$B$4:$Q$6,16,FALSE))) ->  | AE136: =IF(B136="",0,IF(B136=B135,COUNTIF(B$9:B135,B136)+1,1)) -> 124 | AF136: 0 | AG136: 0
A137: 129 | B137: -1900 | C137: =IF(M$1019=1,0,B137&"-"&AE137) -> -1900-125 | V137: =IF(M$1019=1,"",IF(U137="","",VLOOKUP(U137,Tabelle!$B$4:$O$6,14,FALSE))) ->  | W137: =IF(M$1019=1,"",IF(U137="","",VLOOKUP(U137,Tabelle!$B$4:$Q$6,16,FALSE))) ->  | AE137: =IF(B137="",0,IF(B137=B136,COUNTIF(B$9:B136,B137)+1,1)) -> 125 | AF137: 0 | AG137: 0
A138: 130 | B138: =IF(AG138=$AG$1013,0,IF(M$1019=1,0,D138&"-"&YEAR(E138))) -> -1900 | C138: -1900-126 | V138: =IF(M$1019=1,"",IF(U138="","",VLOOKUP(U138,Tabelle!$B$4:$O$6,14,FALSE))) ->  | W138: =IF(M$1019=1,"",IF(U138="","",VLOOKUP(U138,Tabelle!$B$4:$Q$6,16,FALSE))) ->  | AE138: =IF(B138="",0,IF(B138=B137,COUNTIF(B$9:B137,B138)+1,1)) -> 126 | AF138: 0 | AG138: =IF(E138>0,IF(OR(MONTH(E138)<$L$1030,MONTH(E138)>$L$1031),AG$1013,0),0) -> 0
A139: 131 | B139: -1900 | C139: -1900-127 | V139: =IF(M$1019=1,"",IF(U139="","",VLOOKUP(U139,Tabelle!$B$4:$O$6,14,FALSE))) ->  | W139: =IF(M$1019=1,"",IF(U139="","",VLOOKUP(U139,Tabelle!$B$4:$Q$6,16,FALSE))) ->  | AE139: =IF(B139="",0,IF(B139=B138,COUNTIF(B$9:B138,B139)+1,1)) -> 127 | AF139: 0 | AG139: 0
A140: 132 | B140: -1900 | C140: -1900-128 | V140: =IF(M$1019=1,"",IF(U140="","",VLOOKUP(U140,Tabelle!$B$4:$O$6,14,FALSE))) ->  | W140: =IF(M$1019=1,"",IF(U140="","",VLOOKUP(U140,Tabelle!$B$4:$Q$6,16,FALSE))) ->  | AE140: =IF(B140="",0,IF(B140=B139,COUNTIF(B$9:B139,B140)+1,1)) -> 128 | AF140: 0 | AG140: 0
A141: 133 | B141: -1900 | C141: -1900-129 | V141: =IF(M$1019=1,"",IF(U141="","",VLOOKUP(U141,Tabelle!$B$4:$O$6,14,FALSE))) ->  | W141: =IF(M$1019=1,"",IF(U141="","",VLOOKUP(U141,Tabelle!$B$4:$Q$6,16,FALSE))) ->  | AE141: =IF(B141="",0,IF(B141=B140,COUNTIF(B$9:B140,B141)+1,1)) -> 129 | AF141: 0 | AG141: 0
A142: 134 | B142: -1900 | C142: -1900-130 | V142: =IF(M$1019=1,"",IF(U142="","",VLOOKUP(U142,Tabelle!$B$4:$O$6,14,FALSE))) ->  | W142: =IF(M$1019=1,"",IF(U142="","",VLOOKUP(U142,Tabelle!$B$4:$Q$6,16,FALSE))) ->  | AE142: =IF(B142="",0,IF(B142=B141,COUNTIF(B$9:B141,B142)+1,1)) -> 130 | AF142: 0 | AG142: 0
A143: 135 | B143: -1900 | C143: -1900-131 | V143: =IF(M$1019=1,"",IF(U143="","",VLOOKUP(U143,Tabelle!$B$4:$O$6,14,FALSE))) ->  | W143: =IF(M$1019=1,"",IF(U143="","",VLOOKUP(U143,Tabelle!$B$4:$Q$6,16,FALSE))) ->  | AE143: =IF(B143="",0,IF(B143=B142,COUNTIF(B$9:B142,B143)+1,1)) -> 131 | AF143: 0 | AG143: 0
A144: 136 | B144: -1900 | C144: -1900-132 | V144: =IF(M$1019=1,"",IF(U144="","",VLOOKUP(U144,Tabelle!$B$4:$O$6,14,FALSE))) ->  | W144: =IF(M$1019=1,"",IF(U144="","",VLOOKUP(U144,Tabelle!$B$4:$Q$6,16,FALSE))) ->  | AE144: =IF(B144="",0,IF(B144=B143,COUNTIF(B$9:B143,B144)+1,1)) -> 132 | AF144: 0 | AG144: 0
A145: 137 | B145: -1900 | C145: -1900-133 | V145: =IF(M$1019=1,"",IF(U145="","",VLOOKUP(U145,Tabelle!$B$4:$O$6,14,FALSE))) ->  | W145: =IF(M$1019=1,"",IF(U145="","",VLOOKUP(U145,Tabelle!$B$4:$Q$6,16,FALSE))) ->  | AE145: =IF(B145="",0,IF(B145=B144,COUNTIF(B$9:B144,B145)+1,1)) -> 133 | AF145: 0 | AG145: 0
A146: 138 | B146: -1900 | C146: -1900-134 | V146: =IF(M$1019=1,"",IF(U146="","",VLOOKUP(U146,Tabelle!$B$4:$O$6,14,FALSE))) ->  | W146: =IF(M$1019=1,"",IF(U146="","",VLOOKUP(U146,Tabelle!$B$4:$Q$6,16,FALSE))) ->  | AE146: =IF(B146="",0,IF(B146=B145,COUNTIF(B$9:B145,B146)+1,1)) -> 134 | AF146: 0 | AG146: 0
A147: 139 | B147: -1900 | C147: -1900-135 | V147: =IF(M$1019=1,"",IF(U147="","",VLOOKUP(U147,Tabelle!$B$4:$O$6,14,FALSE))) ->  | W147: =IF(M$1019=1,"",IF(U147="","",VLOOKUP(U147,Tabelle!$B$4:$Q$6,16,FALSE))) ->  | AE147: =IF(B147="",0,IF(B147=B146,COUNTIF(B$9:B146,B147)+1,1)) -> 135 | AF147: 0 | AG147: 0
A148: 140 | B148: -1900 | C148: -1900-136 | V148: =IF(M$1019=1,"",IF(U148="","",VLOOKUP(U148,Tabelle!$B$4:$O$6,14,FALSE))) ->  | W148: =IF(M$1019=1,"",IF(U148="","",VLOOKUP(U148,Tabelle!$B$4:$Q$6,16,FALSE))) ->  | AE148: =IF(B148="",0,IF(B148=B147,COUNTIF(B$9:B147,B148)+1,1)) -> 136 | AF148: =IF(OR(D148="",M$1019=1),0,IF(AE148=8,1,0)) -> 0 | AG148: 0
A149: 141 | B149: -1900 | C149: -1900-137 | V149: =IF(M$1019=1,"",IF(U149="","",VLOOKUP(U149,Tabelle!$B$4:$O$6,14,FALSE))) ->  | W149: =IF(M$1019=1,"",IF(U149="","",VLOOKUP(U149,Tabelle!$B$4:$Q$6,16,FALSE))) ->  | AE149: =IF(B149="",0,IF(B149=B148,COUNTIF(B$9:B148,B149)+1,1)) -> 137 | AF149: 0 | AG149: 0
A150: 142 | B150: -1900 | C150: -1900-138 | V150: =IF(M$1019=1,"",IF(U150="","",VLOOKUP(U150,Tabelle!$B$4:$O$6,14,FALSE))) ->  | W150: =IF(M$1019=1,"",IF(U150="","",VLOOKUP(U150,Tabelle!$B$4:$Q$6,16,FALSE))) ->  | AE150: =IF(B150="",0,IF(B150=B149,COUNTIF(B$9:B149,B150)+1,1)) -> 138 | AF150: 0 | AG150: 0
A151: 143 | B151: -1900 | C151: -1900-139 | V151: =IF(M$1019=1,"",IF(U151="","",VLOOKUP(U151,Tabelle!$B$4:$O$6,14,FALSE))) ->  | W151: =IF(M$1019=1,"",IF(U151="","",VLOOKUP(U151,Tabelle!$B$4:$Q$6,16,FALSE))) ->  | AE151: =IF(B151="",0,IF(B151=B150,COUNTIF(B$9:B150,B151)+1,1)) -> 139 | AF151: 0 | AG151: 0
A152: 144 | B152: -1900 | C152: -1900-140 | V152: =IF(M$1019=1,"",IF(U152="","",VLOOKUP(U152,Tabelle!$B$4:$O$6,14,FALSE))) ->  | W152: =IF(M$1019=1,"",IF(U152="","",VLOOKUP(U152,Tabelle!$B$4:$Q$6,16,FALSE))) ->  | AE152: =IF(B152="",0,IF(B152=B151,COUNTIF(B$9:B151,B152)+1,1)) -> 140 | AF152: 0 | AG152: 0
A153: 145 | B153: -1900 | C153: -1900-141 | V153: =IF(M$1019=1,"",IF(U153="","",VLOOKUP(U153,Tabelle!$B$4:$O$6,14,FALSE))) ->  | W153: =IF(M$1019=1,"",IF(U153="","",VLOOKUP(U153,Tabelle!$B$4:$Q$6,16,FALSE))) ->  | AE153: =IF(B153="",0,IF(B153=B152,COUNTIF(B$9:B152,B153)+1,1)) -> 141 | AF153: 0 | AG153: 0
A154: 146 | B154: -1900 | C154: -1900-142 | V154: =IF(M$1019=1,"",IF(U154="","",VLOOKUP(U154,Tabelle!$B$4:$O$6,14,FALSE))) ->  | W154: =IF(M$1019=1,"",IF(U154="","",VLOOKUP(U154,Tabelle!$B$4:$Q$6,16,FALSE))) ->  | AE154: =IF(B154="",0,IF(B154=B153,COUNTIF(B$9:B153,B154)+1,1)) -> 142 | AF154: 0 | AG154: 0
A155: 147 | B155: -1900 | C155: -1900-143 | V155: =IF(M$1019=1,"",IF(U155="","",VLOOKUP(U155,Tabelle!$B$4:$O$6,14,FALSE))) ->  | W155: =IF(M$1019=1,"",IF(U155="","",VLOOKUP(U155,Tabelle!$B$4:$Q$6,16,FALSE))) ->  | AE155: =IF(B155="",0,IF(B155=B154,COUNTIF(B$9:B154,B155)+1,1)) -> 143 | AF155: 0 | AG155: 0
A156: 148 | B156: -1900 | C156: -1900-144 | V156: =IF(M$1019=1,"",IF(U156="","",VLOOKUP(U156,Tabelle!$B$4:$O$6,14,FALSE))) ->  | W156: =IF(M$1019=1,"",IF(U156="","",VLOOKUP(U156,Tabelle!$B$4:$Q$6,16,FALSE))) ->  | AE156: =IF(B156="",0,IF(B156=B155,COUNTIF(B$9:B155,B156)+1,1)) -> 144 | AF156: 0 | AG156: 0
A157: 149 | B157: -1900 | C157: -1900-145 | V157: =IF(M$1019=1,"",IF(U157="","",VLOOKUP(U157,Tabelle!$B$4:$O$6,14,FALSE))) ->  | W157: =IF(M$1019=1,"",IF(U157="","",VLOOKUP(U157,Tabelle!$B$4:$Q$6,16,FALSE))) ->  | AE157: =IF(B157="",0,IF(B157=B156,COUNTIF(B$9:B156,B157)+1,1)) -> 145 | AF157: 0 | AG157: 0
A158: 150 | B158: -1900 | C158: -1900-146 | V158: =IF(M$1019=1,"",IF(U158="","",VLOOKUP(U158,Tabelle!$B$4:$O$6,14,FALSE))) ->  | W158: =IF(M$1019=1,"",IF(U158="","",VLOOKUP(U158,Tabelle!$B$4:$Q$6,16,FALSE))) ->  | AE158: =IF(B158="",0,IF(B158=B157,COUNTIF(B$9:B157,B158)+1,1)) -> 146 | AF158: 0 | AG158: 0
A159: 151 | B159: -1900 | C159: -1900-147 | V159: =IF(M$1019=1,"",IF(U159="","",VLOOKUP(U159,Tabelle!$B$4:$O$6,14,FALSE))) ->  | W159: =IF(M$1019=1,"",IF(U159="","",VLOOKUP(U159,Tabelle!$B$4:$Q$6,16,FALSE))) ->  | AE159: =IF(B159="",0,IF(B159=B158,COUNTIF(B$9:B158,B159)+1,1)) -> 147 | AF159: 0 | AG159: 0
A160: 152 | B160: -1900 | C160: -1900-148 | V160: =IF(M$1019=1,"",IF(U160="","",VLOOKUP(U160,Tabelle!$B$4:$O$6,14,FALSE))) ->  | W160: =IF(M$1019=1,"",IF(U160="","",VLOOKUP(U160,Tabelle!$B$4:$Q$6,16,FALSE))) ->  | AE160: =IF(B160="",0,IF(B160=B159,COUNTIF(B$9:B159,B160)+1,1)) -> 148 | AF160: 0 | AG160: 0
A161: 153 | B161: -1900 | C161: -1900-149 | V161: =IF(M$1019=1,"",IF(U161="","",VLOOKUP(U161,Tabelle!$B$4:$O$6,14,FALSE))) ->  | W161: =IF(M$1019=1,"",IF(U161="","",VLOOKUP(U161,Tabelle!$B$4:$Q$6,16,FALSE))) ->  | AE161: =IF(B161="",0,IF(B161=B160,COUNTIF(B$9:B160,B161)+1,1)) -> 149 | AF161: 0 | AG161: 0
A162: 154 | B162: -1900 | C162: -1900-150 | V162: =IF(M$1019=1,"",IF(U162="","",VLOOKUP(U162,Tabelle!$B$4:$O$6,14,FALSE))) ->  | W162: =IF(M$1019=1,"",IF(U162="","",VLOOKUP(U162,Tabelle!$B$4:$Q$6,16,FALSE))) ->  | AE162: =IF(B162="",0,IF(B162=B161,COUNTIF(B$9:B161,B162)+1,1)) -> 150 | AF162: 0 | AG162: 0
A163: 155 | B163: -1900 | C163: -1900-151 | V163: =IF(M$1019=1,"",IF(U163="","",VLOOKUP(U163,Tabelle!$B$4:$O$6,14,FALSE))) ->  | W163: =IF(M$1019=1,"",IF(U163="","",VLOOKUP(U163,Tabelle!$B$4:$Q$6,16,FALSE))) ->  | AE163: =IF(B163="",0,IF(B163=B162,COUNTIF(B$9:B162,B163)+1,1)) -> 151 | AF163: 0 | AG163: 0
A164: 156 | B164: -1900 | C164: -1900-152 | V164: =IF(M$1019=1,"",IF(U164="","",VLOOKUP(U164,Tabelle!$B$4:$O$6,14,FALSE))) ->  | W164: =IF(M$1019=1,"",IF(U164="","",VLOOKUP(U164,Tabelle!$B$4:$Q$6,16,FALSE))) ->  | AE164: =IF(B164="",0,IF(B164=B163,COUNTIF(B$9:B163,B164)+1,1)) -> 152 | AF164: 0 | AG164: 0
A165: 157 | B165: -1900 | C165: -1900-153 | V165: =IF(M$1019=1,"",IF(U165="","",VLOOKUP(U165,Tabelle!$B$4:$O$6,14,FALSE))) ->  | W165: =IF(M$1019=1,"",IF(U165="","",VLOOKUP(U165,Tabelle!$B$4:$Q$6,16,FALSE))) ->  | AE165: =IF(B165="",0,IF(B165=B164,COUNTIF(B$9:B164,B165)+1,1)) -> 153 | AF165: 0 | AG165: 0
A166: 158 | B166: -1900 | C166: -1900-154 | V166: =IF(M$1019=1,"",IF(U166="","",VLOOKUP(U166,Tabelle!$B$4:$O$6,14,FALSE))) ->  | W166: =IF(M$1019=1,"",IF(U166="","",VLOOKUP(U166,Tabelle!$B$4:$Q$6,16,FALSE))) ->  | AE166: =IF(B166="",0,IF(B166=B165,COUNTIF(B$9:B165,B166)+1,1)) -> 154 | AF166: 0 | AG166: 0
A167: 159 | B167: -1900 | C167: -1900-155 | V167: =IF(M$1019=1,"",IF(U167="","",VLOOKUP(U167,Tabelle!$B$4:$O$6,14,FALSE))) ->  | W167: =IF(M$1019=1,"",IF(U167="","",VLOOKUP(U167,Tabelle!$B$4:$Q$6,16,FALSE))) ->  | AE167: =IF(B167="",0,IF(B167=B166,COUNTIF(B$9:B166,B167)+1,1)) -> 155 | AF167: 0 | AG167: 0
A168: 160 | B168: -1900 | C168: -1900-156 | V168: =IF(M$1019=1,"",IF(U168="","",VLOOKUP(U168,Tabelle!$B$4:$O$6,14,FALSE))) ->  | W168: =IF(M$1019=1,"",IF(U168="","",VLOOKUP(U168,Tabelle!$B$4:$Q$6,16,FALSE))) ->  | AE168: =IF(B168="",0,IF(B168=B167,COUNTIF(B$9:B167,B168)+1,1)) -> 156 | AF168: 0 | AG168: 0
A169: 161 | B169: -1900 | C169: -1900-157 | V169: =IF(M$1019=1,"",IF(U169="","",VLOOKUP(U169,Tabelle!$B$4:$O$6,14,FALSE))) ->  | W169: =IF(M$1019=1,"",IF(U169="","",VLOOKUP(U169,Tabelle!$B$4:$Q$6,16,FALSE))) ->  | AE169: =IF(B169="",0,IF(B169=B168,COUNTIF(B$9:B168,B169)+1,1)) -> 157 | AF169: 0 | AG169: 0
A170: 162 | B170: -1900 | C170: -1900-158 | V170: =IF(M$1019=1,"",IF(U170="","",VLOOKUP(U170,Tabelle!$B$4:$O$6,14,FALSE))) ->  | W170: =IF(M$1019=1,"",IF(U170="","",VLOOKUP(U170,Tabelle!$B$4:$Q$6,16,FALSE))) ->  | AE170: =IF(B170="",0,IF(B170=B169,COUNTIF(B$9:B169,B170)+1,1)) -> 158 | AF170: 0 | AG170: 0
A171: 163 | B171: -1900 | C171: -1900-159 | V171: =IF(M$1019=1,"",IF(U171="","",VLOOKUP(U171,Tabelle!$B$4:$O$6,14,FALSE))) ->  | W171: =IF(M$1019=1,"",IF(U171="","",VLOOKUP(U171,Tabelle!$B$4:$Q$6,16,FALSE))) ->  | AE171: =IF(B171="",0,IF(B171=B170,COUNTIF(B$9:B170,B171)+1,1)) -> 159 | AF171: 0 | AG171: 0
A172: 164 | B172: -1900 | C172: -1900-160 | V172: =IF(M$1019=1,"",IF(U172="","",VLOOKUP(U172,Tabelle!$B$4:$O$6,14,FALSE))) ->  | W172: =IF(M$1019=1,"",IF(U172="","",VLOOKUP(U172,Tabelle!$B$4:$Q$6,16,FALSE))) ->  | AE172: =IF(B172="",0,IF(B172=B171,COUNTIF(B$9:B171,B172)+1,1)) -> 160 | AF172: 0 | AG172: 0
A173: 165 | B173: -1900 | C173: -1900-161 | V173: =IF(M$1019=1,"",IF(U173="","",VLOOKUP(U173,Tabelle!$B$4:$O$6,14,FALSE))) ->  | W173: =IF(M$1019=1,"",IF(U173="","",VLOOKUP(U173,Tabelle!$B$4:$Q$6,16,FALSE))) ->  | AE173: =IF(B173="",0,IF(B173=B172,COUNTIF(B$9:B172,B173)+1,1)) -> 161 | AF173: 0 | AG173: 0
A174: 166 | B174: -1900 | C174: -1900-162 | V174: =IF(M$1019=1,"",IF(U174="","",VLOOKUP(U174,Tabelle!$B$4:$O$6,14,FALSE))) ->  | W174: =IF(M$1019=1,"",IF(U174="","",VLOOKUP(U174,Tabelle!$B$4:$Q$6,16,FALSE))) ->  | AE174: =IF(B174="",0,IF(B174=B173,COUNTIF(B$9:B173,B174)+1,1)) -> 162 | AF174: 0 | AG174: 0
A175: 167 | B175: -1900 | C175: -1900-163 | V175: =IF(M$1019=1,"",IF(U175="","",VLOOKUP(U175,Tabelle!$B$4:$O$6,14,FALSE))) ->  | W175: =IF(M$1019=1,"",IF(U175="","",VLOOKUP(U175,Tabelle!$B$4:$Q$6,16,FALSE))) ->  | AE175: =IF(B175="",0,IF(B175=B174,COUNTIF(B$9:B174,B175)+1,1)) -> 163 | AF175: 0 | AG175: 0
A176: 168 | B176: -1900 | C176: -1900-164 | V176: =IF(M$1019=1,"",IF(U176="","",VLOOKUP(U176,Tabelle!$B$4:$O$6,14,FALSE))) ->  | W176: =IF(M$1019=1,"",IF(U176="","",VLOOKUP(U176,Tabelle!$B$4:$Q$6,16,FALSE))) ->  | AE176: =IF(B176="",0,IF(B176=B175,COUNTIF(B$9:B175,B176)+1,1)) -> 164 | AF176: 0 | AG176: 0
A177: 169 | B177: -1900 | C177: -1900-165 | V177: =IF(M$1019=1,"",IF(U177="","",VLOOKUP(U177,Tabelle!$B$4:$O$6,14,FALSE))) ->  | W177: =IF(M$1019=1,"",IF(U177="","",VLOOKUP(U177,Tabelle!$B$4:$Q$6,16,FALSE))) ->  | AE177: =IF(B177="",0,IF(B177=B176,COUNTIF(B$9:B176,B177)+1,1)) -> 165 | AF177: 0 | AG177: 0
A178: 170 | B178: -1900 | C178: -1900-166 | V178: =IF(M$1019=1,"",IF(U178="","",VLOOKUP(U178,Tabelle!$B$4:$O$6,14,FALSE))) ->  | W178: =IF(M$1019=1,"",IF(U178="","",VLOOKUP(U178,Tabelle!$B$4:$Q$6,16,FALSE))) ->  | AE178: =IF(B178="",0,IF(B178=B177,COUNTIF(B$9:B177,B178)+1,1)) -> 166 | AF178: 0 | AG178: 0
A179: 171 | B179: -1900 | C179: -1900-167 | V179: =IF(M$1019=1,"",IF(U179="","",VLOOKUP(U179,Tabelle!$B$4:$O$6,14,FALSE))) ->  | W179: =IF(M$1019=1,"",IF(U179="","",VLOOKUP(U179,Tabelle!$B$4:$Q$6,16,FALSE))) ->  | AE179: =IF(B179="",0,IF(B179=B178,COUNTIF(B$9:B178,B179)+1,1)) -> 167 | AF179: 0 | AG179: 0
A180: 172 | B180: -1900 | C180: -1900-168 | V180: =IF(M$1019=1,"",IF(U180="","",VLOOKUP(U180,Tabelle!$B$4:$O$6,14,FALSE))) ->  | W180: =IF(M$1019=1,"",IF(U180="","",VLOOKUP(U180,Tabelle!$B$4:$Q$6,16,FALSE))) ->  | AE180: =IF(B180="",0,IF(B180=B179,COUNTIF(B$9:B179,B180)+1,1)) -> 168 | AF180: 0 | AG180: 0
A181: 173 | B181: -1900 | C181: -1900-169 | V181: =IF(M$1019=1,"",IF(U181="","",VLOOKUP(U181,Tabelle!$B$4:$O$6,14,FALSE))) ->  | W181: =IF(M$1019=1,"",IF(U181="","",VLOOKUP(U181,Tabelle!$B$4:$Q$6,16,FALSE))) ->  | AE181: =IF(B181="",0,IF(B181=B180,COUNTIF(B$9:B180,B181)+1,1)) -> 169 | AF181: 0 | AG181: 0
A182: 174 | B182: -1900 | C182: -1900-170 | V182: =IF(M$1019=1,"",IF(U182="","",VLOOKUP(U182,Tabelle!$B$4:$O$6,14,FALSE))) ->  | W182: =IF(M$1019=1,"",IF(U182="","",VLOOKUP(U182,Tabelle!$B$4:$Q$6,16,FALSE))) ->  | AE182: =IF(B182="",0,IF(B182=B181,COUNTIF(B$9:B181,B182)+1,1)) -> 170 | AF182: 0 | AG182: 0
A183: 175 | B183: -1900 | C183: -1900-171 | V183: =IF(M$1019=1,"",IF(U183="","",VLOOKUP(U183,Tabelle!$B$4:$O$6,14,FALSE))) ->  | W183: =IF(M$1019=1,"",IF(U183="","",VLOOKUP(U183,Tabelle!$B$4:$Q$6,16,FALSE))) ->  | AE183: =IF(B183="",0,IF(B183=B182,COUNTIF(B$9:B182,B183)+1,1)) -> 171 | AF183: 0 | AG183: 0
A184: 176 | B184: -1900 | C184: -1900-172 | V184: =IF(M$1019=1,"",IF(U184="","",VLOOKUP(U184,Tabelle!$B$4:$O$6,14,FALSE))) ->  | W184: =IF(M$1019=1,"",IF(U184="","",VLOOKUP(U184,Tabelle!$B$4:$Q$6,16,FALSE))) ->  | AE184: =IF(B184="",0,IF(B184=B183,COUNTIF(B$9:B183,B184)+1,1)) -> 172 | AF184: 0 | AG184: 0
A185: 177 | B185: -1900 | C185: -1900-173 | V185: =IF(M$1019=1,"",IF(U185="","",VLOOKUP(U185,Tabelle!$B$4:$O$6,14,FALSE))) ->  | W185: =IF(M$1019=1,"",IF(U185="","",VLOOKUP(U185,Tabelle!$B$4:$Q$6,16,FALSE))) ->  | AE185: =IF(B185="",0,IF(B185=B184,COUNTIF(B$9:B184,B185)+1,1)) -> 173 | AF185: 0 | AG185: 0
A186: 178 | B186: -1900 | C186: -1900-174 | V186: =IF(M$1019=1,"",IF(U186="","",VLOOKUP(U186,Tabelle!$B$4:$O$6,14,FALSE))) ->  | W186: =IF(M$1019=1,"",IF(U186="","",VLOOKUP(U186,Tabelle!$B$4:$Q$6,16,FALSE))) ->  | AE186: =IF(B186="",0,IF(B186=B185,COUNTIF(B$9:B185,B186)+1,1)) -> 174 | AF186: 0 | AG186: 0
A187: 179 | B187: -1900 | C187: -1900-175 | V187: =IF(M$1019=1,"",IF(U187="","",VLOOKUP(U187,Tabelle!$B$4:$O$6,14,FALSE))) ->  | W187: =IF(M$1019=1,"",IF(U187="","",VLOOKUP(U187,Tabelle!$B$4:$Q$6,16,FALSE))) ->  | AE187: =IF(B187="",0,IF(B187=B186,COUNTIF(B$9:B186,B187)+1,1)) -> 175 | AF187: 0 | AG187: 0
A188: 180 | B188: -1900 | C188: -1900-176 | V188: =IF(M$1019=1,"",IF(U188="","",VLOOKUP(U188,Tabelle!$B$4:$O$6,14,FALSE))) ->  | W188: =IF(M$1019=1,"",IF(U188="","",VLOOKUP(U188,Tabelle!$B$4:$Q$6,16,FALSE))) ->  | AE188: =IF(B188="",0,IF(B188=B187,COUNTIF(B$9:B187,B188)+1,1)) -> 176 | AF188: 0 | AG188: 0
A189: 181 | B189: -1900 | C189: -1900-177 | V189: =IF(M$1019=1,"",IF(U189="","",VLOOKUP(U189,Tabelle!$B$4:$O$6,14,FALSE))) ->  | W189: =IF(M$1019=1,"",IF(U189="","",VLOOKUP(U189,Tabelle!$B$4:$Q$6,16,FALSE))) ->  | AE189: =IF(B189="",0,IF(B189=B188,COUNTIF(B$9:B188,B189)+1,1)) -> 177 | AF189: 0 | AG189: 0
A190: 182 | B190: -1900 | C190: -1900-178 | V190: =IF(M$1019=1,"",IF(U190="","",VLOOKUP(U190,Tabelle!$B$4:$O$6,14,FALSE))) ->  | W190: =IF(M$1019=1,"",IF(U190="","",VLOOKUP(U190,Tabelle!$B$4:$Q$6,16,FALSE))) ->  | AE190: =IF(B190="",0,IF(B190=B189,COUNTIF(B$9:B189,B190)+1,1)) -> 178 | AF190: 0 | AG190: 0
A191: 183 | B191: -1900 | C191: -1900-179 | V191: =IF(M$1019=1,"",IF(U191="","",VLOOKUP(U191,Tabelle!$B$4:$O$6,14,FALSE))) ->  | W191: =IF(M$1019=1,"",IF(U191="","",VLOOKUP(U191,Tabelle!$B$4:$Q$6,16,FALSE))) ->  | AE191: =IF(B191="",0,IF(B191=B190,COUNTIF(B$9:B190,B191)+1,1)) -> 179 | AF191: 0 | AG191: 0
A192: 184 | B192: -1900 | C192: -1900-180 | V192: =IF(M$1019=1,"",IF(U192="","",VLOOKUP(U192,Tabelle!$B$4:$O$6,14,FALSE))) ->  | W192: =IF(M$1019=1,"",IF(U192="","",VLOOKUP(U192,Tabelle!$B$4:$Q$6,16,FALSE))) ->  | AE192: =IF(B192="",0,IF(B192=B191,COUNTIF(B$9:B191,B192)+1,1)) -> 180 | AF192: 0 | AG192: 0
A193: 185 | B193: -1900 | C193: -1900-181 | V193: =IF(M$1019=1,"",IF(U193="","",VLOOKUP(U193,Tabelle!$B$4:$O$6,14,FALSE))) ->  | W193: =IF(M$1019=1,"",IF(U193="","",VLOOKUP(U193,Tabelle!$B$4:$Q$6,16,FALSE))) ->  | AE193: =IF(B193="",0,IF(B193=B192,COUNTIF(B$9:B192,B193)+1,1)) -> 181 | AF193: 0 | AG193: 0
A194: 186 | B194: -1900 | C194: -1900-182 | V194: =IF(M$1019=1,"",IF(U194="","",VLOOKUP(U194,Tabelle!$B$4:$O$6,14,FALSE))) ->  | W194: =IF(M$1019=1,"",IF(U194="","",VLOOKUP(U194,Tabelle!$B$4:$Q$6,16,FALSE))) ->  | AE194: =IF(B194="",0,IF(B194=B193,COUNTIF(B$9:B193,B194)+1,1)) -> 182 | AF194: 0 | AG194: 0
A195: 187 | B195: -1900 | C195: -1900-183 | V195: =IF(M$1019=1,"",IF(U195="","",VLOOKUP(U195,Tabelle!$B$4:$O$6,14,FALSE))) ->  | W195: =IF(M$1019=1,"",IF(U195="","",VLOOKUP(U195,Tabelle!$B$4:$Q$6,16,FALSE))) ->  | AE195: =IF(B195="",0,IF(B195=B194,COUNTIF(B$9:B194,B195)+1,1)) -> 183 | AF195: 0 | AG195: 0
A196: 188 | B196: -1900 | C196: -1900-184 | V196: =IF(M$1019=1,"",IF(U196="","",VLOOKUP(U196,Tabelle!$B$4:$O$6,14,FALSE))) ->  | W196: =IF(M$1019=1,"",IF(U196="","",VLOOKUP(U196,Tabelle!$B$4:$Q$6,16,FALSE))) ->  | AE196: =IF(B196="",0,IF(B196=B195,COUNTIF(B$9:B195,B196)+1,1)) -> 184 | AF196: 0 | AG196: 0
A197: 189 | B197: -1900 | C197: -1900-185 | V197: =IF(M$1019=1,"",IF(U197="","",VLOOKUP(U197,Tabelle!$B$4:$O$6,14,FALSE))) ->  | W197: =IF(M$1019=1,"",IF(U197="","",VLOOKUP(U197,Tabelle!$B$4:$Q$6,16,FALSE))) ->  | AE197: =IF(B197="",0,IF(B197=B196,COUNTIF(B$9:B196,B197)+1,1)) -> 185 | AF197: 0 | AG197: 0
A198: 190 | B198: -1900 | C198: -1900-186 | V198: =IF(M$1019=1,"",IF(U198="","",VLOOKUP(U198,Tabelle!$B$4:$O$6,14,FALSE))) ->  | W198: =IF(M$1019=1,"",IF(U198="","",VLOOKUP(U198,Tabelle!$B$4:$Q$6,16,FALSE))) ->  | AE198: =IF(B198="",0,IF(B198=B197,COUNTIF(B$9:B197,B198)+1,1)) -> 186 | AF198: 0 | AG198: 0
A199: 191 | B199: -1900 | C199: -1900-187 | V199: =IF(M$1019=1,"",IF(U199="","",VLOOKUP(U199,Tabelle!$B$4:$O$6,14,FALSE))) ->  | W199: =IF(M$1019=1,"",IF(U199="","",VLOOKUP(U199,Tabelle!$B$4:$Q$6,16,FALSE))) ->  | AE199: =IF(B199="",0,IF(B199=B198,COUNTIF(B$9:B198,B199)+1,1)) -> 187 | AF199: 0 | AG199: 0
A200: 192 | B200: -1900 | C200: -1900-188 | V200: =IF(M$1019=1,"",IF(U200="","",VLOOKUP(U200,Tabelle!$B$4:$O$6,14,FALSE))) ->  | W200: =IF(M$1019=1,"",IF(U200="","",VLOOKUP(U200,Tabelle!$B$4:$Q$6,16,FALSE))) ->  | AE200: =IF(B200="",0,IF(B200=B199,COUNTIF(B$9:B199,B200)+1,1)) -> 188 | AF200: 0 | AG200: 0
A201: 193 | B201: -1900 | C201: =IF(M$1019=1,0,B201&"-"&AE201) -> -1900-189 | V201: =IF(M$1019=1,"",IF(U201="","",VLOOKUP(U201,Tabelle!$B$4:$O$6,14,FALSE))) ->  | W201: =IF(M$1019=1,"",IF(U201="","",VLOOKUP(U201,Tabelle!$B$4:$Q$6,16,FALSE))) ->  | AE201: =IF(B201="",0,IF(B201=B200,COUNTIF(B$9:B200,B201)+1,1)) -> 189 | AF201: 0 | AG201: 0
A202: 194 | B202: =IF(AG202=$AG$1013,0,IF(M$1019=1,0,D202&"-"&YEAR(E202))) -> -1900 | C202: -1900-190 | V202: =IF(M$1019=1,"",IF(U202="","",VLOOKUP(U202,Tabelle!$B$4:$O$6,14,FALSE))) ->  | W202: =IF(M$1019=1,"",IF(U202="","",VLOOKUP(U202,Tabelle!$B$4:$Q$6,16,FALSE))) ->  | AE202: =IF(B202="",0,IF(B202=B201,COUNTIF(B$9:B201,B202)+1,1)) -> 190 | AF202: 0 | AG202: =IF(E202>0,IF(OR(MONTH(E202)<$L$1030,MONTH(E202)>$L$1031),AG$1013,0),0) -> 0
... 860 more rows

Sheet F 23
AX2: ANNO
AX3: 2024
X4: =VLOOKUP(VLOOKUP(AX5&"-"&AX3,'DATI del VERSAMENTO'!B9:G1008,6,FALSE),'DATI del VERSAMENTO'!G1019:H1068,2,FALSE) -> Inserisci Provincia | AX4: Protocollo DOC.
AX5: 1
X6: =VLOOKUP(VLOOKUP(AX5&"-"&AX3,'DATI del VERSAMENTO'!B9:U1008,20,FALSE),Tabelle!B4:C6,2,FALSE) -> Nome Banca 1 / modifica sigla
AB8: =VLOOKUP(VLOOKUP(AX5&"-"&AX3,'DATI del VERSAMENTO'!B9:U1008,20,FALSE),Tabelle!B4:I6,8,FALSE) -> Nome Agenzia 1 | AT8: =VLOOKUP(VLOOKUP(AX5&"-"&AX3,'DATI del VERSAMENTO'!B9:U1008,20,FALSE),Tabelle!B4:N6,13,FALSE) -> XX
AX11: Alfanumerico
AX12: =VLOOKUP($AX$5&"-"&$AX$3,'DATI del VERSAMENTO'!$B$9:$AA$1008,26,FALSE) -> AB 100
C13: =CONTRIBUENTE!E34 -> Anagrafica CONTRIBUENTE | AA13: =CONTRIBUENTE!E36 -> Nome CONTRIBUENTE | AM13: =MID(TEXT(CONTRIBUENTE!J36,"gg/mm/aaaa"),1,1) -> 0 | AN13: =MID(TEXT(CONTRIBUENTE!J36,"gg/mm/aaaa"),2,1) -> 1 | AP13: =MID(TEXT(CONTRIBUENTE!J36,"gg/mm/aaaa"),4,1) -> 0 | AR13: =MID(TEXT(CONTRIBUENTE!J36,"gg/mm/aaaa"),5,1) -> 1 | AS13: =MID(TEXT(CONTRIBUENTE!J36,"gg/mm/aaaa"),7,1) -> 2 | AT13: =MID(TEXT(CONTRIBUENTE!J36,"gg/mm/aaaa"),8,1) -> 0 | AU13: =MID(TEXT(CONTRIBUENTE!J36,"gg/mm/aaaa"),9,1) -> 0 | AV13: =MID(TEXT(CONTRIBUENTE!J36,"gg/mm/aaaa"),10,1) -> 0
D15: =VLOOKUP(CONTRIBUENTE!M36,CONTRIBUENTE!$E$148:$F$149,2,FALSE) ->  | K15: =CONTRIBUENTE!D38 -> 0 | AA15: =LEFT(CONTRIBUENTE!H38,1) ->  | AB15: =RIGHT(CONTRIBUENTE!H38,1) ->  | AE15: =MID(CONTRIBUENTE!$J38,1,1) -> 0 | AF15: =MID(CONTRIBUENTE!$J38,2,1) -> 1 | AG15: =MID(CONTRIBUENTE!$J38,3,1) -> 2 | AH15: =MID(CONTRIBUENTE!$J38,4,1) -> 3 | AI15: =MID(CONTRIBUENTE!$J38,5,1) -> 4 | AJ15: =MID(CONTRIBUENTE!$J38,6,1) -> 5 | AK15: =MID(CONTRIBUENTE!$J38,7,1) -> 6 | AL15: =MID(CONTRIBUENTE!$J38,8,1) -> 7 | AM15: =MID(CONTRIBUENTE!$J38,9,1) -> 8 | AN15: =MID(CONTRIBUENTE!$J38,10,1) -> 9 | AP15: =MID(CONTRIBUENTE!$J38,11,1) -> 1 | AR15: =MID(CONTRIBUENTE!$J38,12,1) ->  | AS15: =MID(CONTRIBUENTE!$J38,13,1) ->  | AT15: =MID(CONTRIBUENTE!$J38,14,1) ->  | AU15: =MID(CONTRIBUENTE!$J38,15,1) ->  | AV15: =MID(CONTRIBUENTE!$J38,16,1) ->  | AX15: =T54 -> 
C17: =CONTRIBUENTE!E41 -> 0 | AA17: =CONTRIBUENTE!E43 -> 0 | AM17: =MID(TEXT(CONTRIBUENTE!J43,"gg/mm/aaaa"),1,1) -> 0 | AN17: =MID(TEXT(CONTRIBUENTE!J43,"gg/mm/aaaa"),2,1) -> 0 | AP17: =MID(TEXT(CONTRIBUENTE!J43,"gg/mm/aaaa"),4,1) -> 0 | AR17: =MID(TEXT(CONTRIBUENTE!J43,"gg/mm/aaaa"),5,1) -> 1 | AS17: =MID(TEXT(CONTRIBUENTE!J43,"gg/mm/aaaa"),7,1) -> 1 | AT17: =MID(TEXT(CONTRIBUENTE!J43,"gg/mm/aaaa"),8,1) -> 9 | AU17: =MID(TEXT(CONTRIBUENTE!J43,"gg/mm/aaaa"),9,1) -> 0 | AV17: =MID(TEXT(CONTRIBUENTE!J43,"gg/mm/aaaa"),10,1) -> 0
D19: =VLOOKUP(CONTRIBUENTE!M43,CONTRIBUENTE!$E$148:$F$149,2,FALSE) ->  | K19: =CONTRIBUENTE!D45 -> 0 | AA19: =LEFT(CONTRIBUENTE!H45,1) ->  | AB19: =RIGHT(CONTRIBUENTE!H45,1) ->  | AE19: =MID(CONTRIBUENTE!$J45,1,1) ->  | AF19: =MID(CONTRIBUENTE!$J45,2,1) ->  | AG19: =MID(CONTRIBUENTE!$J45,3,1) ->  | AH19: =MID(CONTRIBUENTE!$J45,4,1) ->  | AI19: =MID(CONTRIBUENTE!$J45,5,1) ->  | AJ19: =MID(CONTRIBUENTE!$J45,6,1) ->  | AK19: =MID(CONTRIBUENTE!$J45,7,1) ->  | AL19: =MID(CONTRIBUENTE!$J45,8,1) ->  | AM19: =MID(CONTRIBUENTE!$J45,9,1) ->  | AN19: =MID(CONTRIBUENTE!$J45,10,1) ->  | AP19: =MID(CONTRIBUENTE!$J45,11,1) ->  | AR19: =MID(CONTRIBUENTE!$J45,12,1) ->  | AS19: =MID(CONTRIBUENTE!$J45,13,1) ->  | AT19: =MID(CONTRIBUENTE!$J45,14,1) ->  | AU19: =MID(CONTRIBUENTE!$J45,15,1) ->  | AV19: =MID(CONTRIBUENTE!$J45,16,1) -> 
C22: =MID(VLOOKUP(AX5&"-"&AX3,'DATI del VERSAMENTO'!B9:H1008,7,FALSE),1,1) ->  | E22: =MID(VLOOKUP(AX5&"-"&AX3,'DATI del VERSAMENTO'!B9:H1008,7,FALSE),2,1) ->  | G22: =MID(VLOOKUP(AX5&"-"&AX3,'DATI del VERSAMENTO'!B9:H1008,7,FALSE),3,1) ->  | T22: =VLOOKUP(AX5&"-"&AX3,'DATI del VERSAMENTO'!B9:O1008,14,FALSE) -> 1 | W22: =MID(VLOOKUP(AX5&"-"&AX3,'DATI del VERSAMENTO'!B9:P1008,15,FALSE),1,1) -> I | X22: =MID(VLOOKUP(AX5&"-"&AX3,'DATI del VERSAMENTO'!B9:P1008,15,FALSE),2,1) -> N | AA22: =MID(VLOOKUP(AX5&"-"&AX3,'DATI del VERSAMENTO'!B9:R1008,17,FALSE),1,1) -> 1 | AB22: =MID(VLOOKUP(AX5&"-"&AX3,'DATI del VERSAMENTO'!B9:R1008,17,FALSE),2,1) -> 9 | AD22: =MID(VLOOKUP(AX5&"-"&AX3,'DATI del VERSAMENTO'!B9:R1008,17,FALSE),3,1) -> 9 | AE22: =MID(VLOOKUP(AX5&"-"&AX3,'DATI del VERSAMENTO'!B9:R1008,17,FALSE),4,1) -> 9 | AF22: =MID(VLOOKUP(AX5&"-"&AX3,'DATI del VERSAMENTO'!B9:S1008,18,FALSE),1,1) -> 1 | AG22: =MID(VLOOKUP(AX5&"-"&AX3,'DATI del VERSAMENTO'!B9:S1008,18,FALSE),2,1) -> 2 | AH22: =MID(VLOOKUP(AX5&"-"&AX3,'DATI del VERSAMENTO'!B9:S1008,18,FALSE),3,1) -> 3 | AI22: =MID(VLOOKUP(AX5&"-"&AX3,'DATI del VERSAMENTO'!B9:S1008,18,FALSE),4,1) -> 4 | AJ22: =MID(VLOOKUP(AX5&"-"&AX3,'DATI del VERSAMENTO'!B9:S1008,18,FALSE),5,1) -> 5 | AK22: =MID(VLOOKUP(AX5&"-"&AX3,'DATI del VERSAMENTO'!B9:S1008,18,FALSE),6,1) -> 6 | AL22: =MID(VLOOKUP(AX5&"-"&AX3,'DATI del VERSAMENTO'!B9:S1008,18,FALSE),7,1) ->  | AM22: =MID(VLOOKUP(AX5&"-"&AX3,'DATI del VERSAMENTO'!B9:S1008,18,FALSE),8,1) ->  | AN22: =MID(VLOOKUP(AX5&"-"&AX3,'DATI del VERSAMENTO'!B9:S1008,18,FALSE),9,1) ->  | AP22: =MID(VLOOKUP(AX5&"-"&AX3,'DATI del VERSAMENTO'!B9:S1008,18,FALSE),10,1) ->  | AR22: =MID(VLOOKUP(AX5&"-"&AX3,'DATI del VERSAMENTO'!B9:S1008,18,FALSE),11,1) ->  | AS22: =MID(VLOOKUP(AX5&"-"&AX3,'DATI del VERSAMENTO'!B9:S1008,18,FALSE),12,1) ->  | AT22: =MID(VLOOKUP(AX5&"-"&AX3,'DATI del VERSAMENTO'!B9:S1008,18,FALSE),13,1) ->  | AU22: =MID(VLOOKUP(AX5&"-"&AX3,'DATI del VERSAMENTO'!B9:S1008,18,FALSE),14,1) ->  | AV22: =MID(VLOOKUP(AX5&"-"&AX3,'DATI del VERSAMENTO'!B9:S1008,18,FALSE),15,1) -> 
AX23: Note
A24: 1 | B24: =MID(VLOOKUP($AX$5&"-"&$AX$3&"-"&A24,'DATI del VERSAMENTO'!$C$9:$J$1008,8,FALSE),1,1) -> 0 | D24: =MID(VLOOKUP($AX$5&"-"&$AX$3&"-"&A24,'DATI del VERSAMENTO'!$C$9:$J$1008,8,FALSE),2,1) -> 0 | F24: =MID(VLOOKUP($AX$5&"-"&$AX$3&"-"&A24,'DATI del VERSAMENTO'!$C$9:$J$1008,8,FALSE),3,1) -> 0 | H24: =MID(VLOOKUP($AX$5&"-"&$AX$3&"-"&A24,'DATI del VERSAMENTO'!$C$9:$J$1008,8,FALSE),4,1) -> 1 | L24: =VLOOKUP($AX$5&"-"&$AX$3&"-"&A24,'DATI del VERSAMENTO'!$C$9:$K$1008,9,FALSE) -> 0 | AE24: =FLOOR(VLOOKUP($AX$5&"-"&$AX$3&"-"&A24,'DATI del VERSAMENTO'!$C$9:$L$1008,10,FALSE),1) -> 1000 | AM24: =LEFT(RIGHT(TEXT(VLOOKUP($AX$5&"-"&$AX$3&"-"&A24,'DATI del VERSAMENTO'!$C$9:$L$1008,10,FALSE),"0,00"),2),1) -> 0 | AO24: =RIGHT(TEXT(VLOOKUP($AX$5&"-"&$AX$3&"-"&A24,'DATI del VERSAMENTO'!$C$9:$L$1008,10,FALSE),"0,00"),1) -> 0 | AS24: =MID(VLOOKUP($AX$5&"-"&$AX$3&"-"&A24,'DATI del VERSAMENTO'!$C$9:$M$1008,11,FALSE),1,1) -> 0 | AT24: =MID(VLOOKUP($AX$5&"-"&$AX$3&"-"&A24,'DATI del VERSAMENTO'!$C$9:$M$1008,11,FALSE),2,1) -> 0 | AU24: =MID(VLOOKUP($AX$5&"-"&$AX$3&"-"&A24,'DATI del VERSAMENTO'!$C$9:$M$1008,11,FALSE),3,1) -> 0 | AV24: =MID(VLOOKUP($AX$5&"-"&$AX$3&"-"&A24,'DATI del VERSAMENTO'!$C$9:$M$1008,11,FALSE),4,1) -> 1 | AX24: =VLOOKUP($AX$5&"-"&$AX$3&"-"&A24,'DATI del VERSAMENTO'!$C$9:$AC$1008,27,FALSE) -> Testo Libero
A25: 2 | B25: =MID(VLOOKUP($AX$5&"-"&$AX$3&"-"&A25,'DATI del VERSAMENTO'!$C$9:$J$1008,8,FALSE),1,1) ->  | D25: =MID(VLOOKUP($AX$5&"-"&$AX$3&"-"&A25,'DATI del VERSAMENTO'!$C$9:$J$1008,8,FALSE),2,1) ->  | F25: =MID(VLOOKUP($AX$5&"-"&$AX$3&"-"&A25,'DATI del VERSAMENTO'!$C$9:$J$1008,8,FALSE),3,1) ->  | H25: =MID(VLOOKUP($AX$5&"-"&$AX$3&"-"&A25,'DATI del VERSAMENTO'!$C$9:$J$1008,8,FALSE),4,1) ->  | L25: =VLOOKUP($AX$5&"-"&$AX$3&"-"&A25,'DATI del VERSAMENTO'!$C$9:$K$1008,9,FALSE) ->  | AE25: =FLOOR(VLOOKUP($AX$5&"-"&$AX$3&"-"&A25,'DATI del VERSAMENTO'!$C$9:$L$1008,10,FALSE),1) ->  | AM25: =LEFT(RIGHT(TEXT(VLOOKUP($AX$5&"-"&$AX$3&"-"&A25,'DATI del VERSAMENTO'!$C$9:$L$1008,10,FALSE),"0,00"),2),1) ->  | AO25: =RIGHT(TEXT(VLOOKUP($AX$5&"-"&$AX$3&"-"&A25,'DATI del VERSAMENTO'!$C$9:$L$1008,10,FALSE),"0,00"),1) ->  | AS25: =MID(VLOOKUP($AX$5&"-"&$AX$3&"-"&A25,'DATI del VERSAMENTO'!$C$9:$M$1008,11,FALSE),1,1) ->  | AT25: =MID(VLOOKUP($AX$5&"-"&$AX$3&"-"&A25,'DATI del VERSAMENTO'!$C$9:$M$1008,11,FALSE),2,1) ->  | AU25: =MID(VLOOKUP($AX$5&"-"&$AX$3&"-"&A25,'DATI del VERSAMENTO'!$C$9:$M$1008,11,FALSE),3,1) ->  | AV25: =MID(VLOOKUP($AX$5&"-"&$AX$3&"-"&A25,'DATI del VERSAMENTO'!$C$9:$M$1008,11,FALSE),4,1) ->  | AX25: =VLOOKUP($AX$5&"-"&$AX$3&"-"&A25,'DATI del VERSAMENTO'!$C$9:$AC$1008,27,FALSE) -> 
A26: 3 | B26: =MID(VLOOKUP($AX$5&"-"&$AX$3&"-"&A26,'DATI del VERSAMENTO'!$C$9:$J$1008,8,FALSE),1,1) ->  | D26: =MID(VLOOKUP($AX$5&"-"&$AX$3&"-"&A26,'DATI del VERSAMENTO'!$C$9:$J$1008,8,FALSE),2,1) ->  | F26: =MID(VLOOKUP($AX$5&"-"&$AX$3&"-"&A26,'DATI del VERSAMENTO'!$C$9:$J$1008,8,FALSE),3,1) ->  | H26: =MID(VLOOKUP($AX$5&"-"&$AX$3&"-"&A26,'DATI del VERSAMENTO'!$C$9:$J$1008,8,FALSE),4,1) ->  | L26: =VLOOKUP($AX$5&"-"&$AX$3&"-"&A26,'DATI del VERSAMENTO'!$C$9:$K$1008,9,FALSE) ->  | AE26: =FLOOR(VLOOKUP($AX$5&"-"&$AX$3&"-"&A26,'DATI del VERSAMENTO'!$C$9:$L$1008,10,FALSE),1) ->  | AM26: =LEFT(RIGHT(TEXT(VLOOKUP($AX$5&"-"&$AX$3&"-"&A26,'DATI del VERSAMENTO'!$C$9:$L$1008,10,FALSE),"0,00"),2),1) ->  | AO26: =RIGHT(TEXT(VLOOKUP($AX$5&"-"&$AX$3&"-"&A26,'DATI del VERSAMENTO'!$C$9:$L$1008,10,FALSE),"0,00"),1) ->  | AS26: =MID(VLOOKUP($AX$5&"-"&$AX$3&"-"&A26,'DATI del VERSAMENTO'!$C$9:$M$1008,11,FALSE),1,1) ->  | AT26: =MID(VLOOKUP($AX$5&"-"&$AX$3&"-"&A26,'DATI del VERSAMENTO'!$C$9:$M$1008,11,FALSE),2,1) ->  | AU26: =MID(VLOOKUP($AX$5&"-"&$AX$3&"-"&A26,'DATI del VERSAMENTO'!$C$9:$M$1008,11,FALSE),3,1) ->  | AV26: =MID(VLOOKUP($AX$5&"-"&$AX$3&"-"&A26,'DATI del VERSAMENTO'!$C$9:$M$1008,11,FALSE),4,1) ->  | AX26: =VLOOKUP($AX$5&"-"&$AX$3&"-"&A26,'DATI del VERSAMENTO'!$C$9:$AC$1008,27,FALSE) -> 
A27: 4 | B27: =MID(VLOOKUP($AX$5&"-"&$AX$3&"-"&A27,'DATI del VERSAMENTO'!$C$9:$J$1008,8,FALSE),1,1) ->  | D27: =MID(VLOOKUP($AX$5&"-"&$AX$3&"-"&A27,'DATI del VERSAMENTO'!$C$9:$J$1008,8,FALSE),2,1) ->  | F27: =MID(VLOOKUP($AX$5&"-"&$AX$3&"-"&A27,'DATI del VERSAMENTO'!$C$9:$J$1008,8,FALSE),3,1) ->  | H27: =MID(VLOOKUP($AX$5&"-"&$AX$3&"-"&A27,'DATI del VERSAMENTO'!$C$9:$J$1008,8,FALSE),4,1) ->  | L27: =VLOOKUP($AX$5&"-"&$AX$3&"-"&A27,'DATI del VERSAMENTO'!$C$9:$K$1008,9,FALSE) ->  | AE27: =FLOOR(VLOOKUP($AX$5&"-"&$AX$3&"-"&A27,'DATI del VERSAMENTO'!$C$9:$L$1008,10,FALSE),1) ->  | AM27: =LEFT(RIGHT(TEXT(VLOOKUP($AX$5&"-"&$AX$3&"-"&A27,'DATI del VERSAMENTO'!$C$9:$L$1008,10,FALSE),"0,00"),2),1) ->  | AO27: =RIGHT(TEXT(VLOOKUP($AX$5&"-"&$AX$3&"-"&A27,'DATI del VERSAMENTO'!$C$9:$L$1008,10,FALSE),"0,00"),1) ->  | AS27: =MID(VLOOKUP($AX$5&"-"&$AX$3&"-"&A27,'DATI del VERSAMENTO'!$C$9:$M$1008,11,FALSE),1,1) ->  | AT27: =MID(VLOOKUP($AX$5&"-"&$AX$3&"-"&A27,'DATI del VERSAMENTO'!$C$9:$M$1008,11,FALSE),2,1) ->  | AU27: =MID(VLOOKUP($AX$5&"-"&$AX$3&"-"&A27,'DATI del VERSAMENTO'!$C$9:$M$1008,11,FALSE),3,1) ->  | AV27: =MID(VLOOKUP($AX$5&"-"&$AX$3&"-"&A27,'DATI del VERSAMENTO'!$C$9:$M$1008,11,FALSE),4,1) ->  | AX27: =VLOOKUP($AX$5&"-"&$AX$3&"-"&A27,'DATI del VERSAMENTO'!$C$9:$AC$1008,27,FALSE) -> 
A28: 5 | B28: =MID(VLOOKUP($AX$5&"-"&$AX$3&"-"&A28,'DATI del VERSAMENTO'!$C$9:$J$1008,8,FALSE),1,1) ->  | D28: =MID(VLOOKUP($AX$5&"-"&$AX$3&"-"&A28,'DATI del VERSAMENTO'!$C$9:$J$1008,8,FALSE),2,1) ->  | F28: =MID(VLOOKUP($AX$5&"-"&$AX$3&"-"&A28,'DATI del VERSAMENTO'!$C$9:$J$1008,8,FALSE),3,1) ->  | H28: =MID(VLOOKUP($AX$5&"-"&$AX$3&"-"&A28,'DATI del VERSAMENTO'!$C$9:$J$1008,8,FALSE),4,1) ->  | L28: =VLOOKUP($AX$5&"-"&$AX$3&"-"&A28,'DATI del VERSAMENTO'!$C$9:$K$1008,9,FALSE) ->  | AE28: =FLOOR(VLOOKUP($AX$5&"-"&$AX$3&"-"&A28,'DATI del VERSAMENTO'!$C$9:$L$1008,10,FALSE),1) ->  | AM28: =LEFT(RIGHT(TEXT(VLOOKUP($AX$5&"-"&$AX$3&"-"&A28,'DATI del VERSAMENTO'!$C$9:$L$1008,10,FALSE),"0,00"),2),1) ->  | AO28: =RIGHT(TEXT(VLOOKUP($AX$5&"-"&$AX$3&"-"&A28,'DATI del VERSAMENTO'!$C$9:$L$1008,10,FALSE),"0,00"),1) ->  | AS28: =MID(VLOOKUP($AX$5&"-"&$AX$3&"-"&A28,'DATI del VERSAMENTO'!$C$9:$M$1008,11,FALSE),1,1) ->  | AT28: =MID(VLOOKUP($AX$5&"-"&$AX$3&"-"&A28,'DATI del VERSAMENTO'!$C$9:$M$1008,11,FALSE),2,1) ->  | AU28: =MID(VLOOKUP($AX$5&"-"&$AX$3&"-"&A28,'DATI del VERSAMENTO'!$C$9:$M$1008,11,FALSE),3,1) ->  | AV28: =MID(VLOOKUP($AX$5&"-"&$AX$3&"-"&A28,'DATI del VERSAMENTO'!$C$9:$M$1008,11,FALSE),4,1) ->  | AX28: =VLOOKUP($AX$5&"-"&$AX$3&"-"&A28,'DATI del VERSAMENTO'!$C$9:$AC$1008,27,FALSE) -> 
A29: 6 | B29: =MID(VLOOKUP($AX$5&"-"&$AX$3&"-"&A29,'DATI del VERSAMENTO'!$C$9:$J$1008,8,FALSE),1,1) ->  | D29: =MID(VLOOKUP($AX$5&"-"&$AX$3&"-"&A29,'DATI del VERSAMENTO'!$C$9:$J$1008,8,FALSE),2,1) ->  | F29: =MID(VLOOKUP($AX$5&"-"&$AX$3&"-"&A29,'DATI del VERSAMENTO'!$C$9:$J$1008,8,FALSE),3,1) ->  | H29: =MID(VLOOKUP($AX$5&"-"&$AX$3&"-"&A29,'DATI del VERSAMENTO'!$C$9:$J$1008,8,FALSE),4,1) ->  | L29: =VLOOKUP($AX$5&"-"&$AX$3&"-"&A29,'DATI del VERSAMENTO'!$C$9:$K$1008,9,FALSE) ->  | AE29: =FLOOR(VLOOKUP($AX$5&"-"&$AX$3&"-"&A29,'DATI del VERSAMENTO'!$C$9:$L$1008,10,FALSE),1) ->  | AM29: =LEFT(RIGHT(TEXT(VLOOKUP($AX$5&"-"&$AX$3&"-"&A29,'DATI del VERSAMENTO'!$C$9:$L$1008,10,FALSE),"0,00"),2),1) ->  | AO29: =RIGHT(TEXT(VLOOKUP($AX$5&"-"&$AX$3&"-"&A29,'DATI del VERSAMENTO'!$C$9:$L$1008,10,FALSE),"0,00"),1) ->  | AS29: =MID(VLOOKUP($AX$5&"-"&$AX$3&"-"&A29,'DATI del VERSAMENTO'!$C$9:$M$1008,11,FALSE),1,1) ->  | AT29: =MID(VLOOKUP($AX$5&"-"&$AX$3&"-"&A29,'DATI del VERSAMENTO'!$C$9:$M$1008,11,FALSE),2,1) ->  | AU29: =MID(VLOOKUP($AX$5&"-"&$AX$3&"-"&A29,'DATI del VERSAMENTO'!$C$9:$M$1008,11,FALSE),3,1) ->  | AV29: =MID(VLOOKUP($AX$5&"-"&$AX$3&"-"&A29,'DATI del VERSAMENTO'!$C$9:$M$1008,11,FALSE),4,1) ->  | AX29: =VLOOKUP($AX$5&"-"&$AX$3&"-"&A29,'DATI del VERSAMENTO'!$C$9:$AC$1008,27,FALSE) -> 
A30: 7 | B30: =MID(VLOOKUP($AX$5&"-"&$AX$3&"-"&A30,'DATI del VERSAMENTO'!$C$9:$J$1008,8,FALSE),1,1) ->  | D30: =MID(VLOOKUP($AX$5&"-"&$AX$3&"-"&A30,'DATI del VERSAMENTO'!$C$9:$J$1008,8,FALSE),2,1) ->  | F30: =MID(VLOOKUP($AX$5&"-"&$AX$3&"-"&A30,'DATI del VERSAMENTO'!$C$9:$J$1008,8,FALSE),3,1) ->  | H30: =MID(VLOOKUP($AX$5&"-"&$AX$3&"-"&A30,'DATI del VERSAMENTO'!$C$9:$J$1008,8,FALSE),4,1) ->  | L30: =VLOOKUP($AX$5&"-"&$AX$3&"-"&A30,'DATI del VERSAMENTO'!$C$9:$K$1008,9,FALSE) ->  | AE30: =FLOOR(VLOOKUP($AX$5&"-"&$AX$3&"-"&A30,'DATI del VERSAMENTO'!$C$9:$L$1008,10,FALSE),1) ->  | AM30: =LEFT(RIGHT(TEXT(VLOOKUP($AX$5&"-"&$AX$3&"-"&A30,'DATI del VERSAMENTO'!$C$9:$L$1008,10,FALSE),"0,00"),2),1) ->  | AO30: =RIGHT(TEXT(VLOOKUP($AX$5&"-"&$AX$3&"-"&A30,'DATI del VERSAMENTO'!$C$9:$L$1008,10,FALSE),"0,00"),1) ->  | AS30: =MID(VLOOKUP($AX$5&"-"&$AX$3&"-"&A30,'DATI del VERSAMENTO'!$C$9:$M$1008,11,FALSE),1,1) ->  | AT30: =MID(VLOOKUP($AX$5&"-"&$AX$3&"-"&A30,'DATI del VERSAMENTO'!$C$9:$M$1008,11,FALSE),2,1) ->  | AU30: =MID(VLOOKUP($AX$5&"-"&$AX$3&"-"&A30,'DATI del VERSAMENTO'!$C$9:$M$1008,11,FALSE),3,1) ->  | AV30: =MID(VLOOKUP($AX$5&"-"&$AX$3&"-"&A30,'DATI del VERSAMENTO'!$C$9:$M$1008,11,FALSE),4,1) ->  | AX30: =VLOOKUP($AX$5&"-"&$AX$3&"-"&A30,'DATI del VERSAMENTO'!$C$9:$AC$1008,27,FALSE) -> 
A31: 8 | B31: =MID(VLOOKUP($AX$5&"-"&$AX$3&"-"&A31,'DATI del VERSAMENTO'!$C$9:$J$1008,8,FALSE),1,1) ->  | D31: =MID(VLOOKUP($AX$5&"-"&$AX$3&"-"&A31,'DATI del VERSAMENTO'!$C$9:$J$1008,8,FALSE),2,1) ->  | F31: =MID(VLOOKUP($AX$5&"-"&$AX$3&"-"&A31,'DATI del VERSAMENTO'!$C$9:$J$1008,8,FALSE),3,1) ->  | H31: =MID(VLOOKUP($AX$5&"-"&$AX$3&"-"&A31,'DATI del VERSAMENTO'!$C$9:$J$1008,8,FALSE),4,1) ->  | L31: =VLOOKUP($AX$5&"-"&$AX$3&"-"&A31,'DATI del VERSAMENTO'!$C$9:$K$1008,9,FALSE) ->  | AE31: =FLOOR(VLOOKUP($AX$5&"-"&$AX$3&"-"&A31,'DATI del VERSAMENTO'!$C$9:$L$1008,10,FALSE),1) ->  | AM31: =LEFT(RIGHT(TEXT(VLOOKUP($AX$5&"-"&$AX$3&"-"&A31,'DATI del VERSAMENTO'!$C$9:$L$1008,10,FALSE),"0,00"),2),1) ->  | AO31: =RIGHT(TEXT(VLOOKUP($AX$5&"-"&$AX$3&"-"&A31,'DATI del VERSAMENTO'!$C$9:$L$1008,10,FALSE),"0,00"),1) ->  | AS31: =MID(VLOOKUP($AX$5&"-"&$AX$3&"-"&A31,'DATI del VERSAMENTO'!$C$9:$M$1008,11,FALSE),1,1) ->  | AT31: =MID(VLOOKUP($AX$5&"-"&$AX$3&"-"&A31,'DATI del VERSAMENTO'!$C$9:$M$1008,11,FALSE),2,1) ->  | AU31: =MID(VLOOKUP($AX$5&"-"&$AX$3&"-"&A31,'DATI del VERSAMENTO'!$C$9:$M$1008,11,FALSE),3,1) ->  | AV31: =MID(VLOOKUP($AX$5&"-"&$AX$3&"-"&A31,'DATI del VERSAMENTO'!$C$9:$M$1008,11,FALSE),4,1) ->  | AX31: =VLOOKUP($AX$5&"-"&$AX$3&"-"&A31,'DATI del VERSAMENTO'!$C$9:$AC$1008,27,FALSE) -> 
AE32: =FLOOR(SUMIF('DATI del VERSAMENTO'!B9:B1008,$AX$5&"-"&$AX$3,'DATI del VERSAMENTO'!L9:L1008),1) -> 1000 | AM32: =LEFT(RIGHT(TEXT(SUMIF('DATI del VERSAMENTO'!B9:B1008,$AX$5&"-"&$AX$3,'DATI del VERSAMENTO'!L9:L1008),"0,00"),2),1) -> 0 | AO32: =RIGHT(TEXT(SUMIF('DATI del VERSAMENTO'!B9:B1008,$AX$5&"-"&$AX$3,'DATI del VERSAMENTO'!L9:L1008),"0,00"),1) -> 0
B37: =MID(TEXT(VLOOKUP(AX5&"-"&AX3,'DATI del VERSAMENTO'!B9:E1008,4,FALSE),"gg/mm/aaaa"),1,1) -> 0 | D37: =MID(TEXT(VLOOKUP(AX5&"-"&AX3,'DATI del VERSAMENTO'!B9:E1008,4,FALSE),"gg/mm/aaaa"),2,1) -> 1 | F37: =MID(TEXT(VLOOKUP(AX5&"-"&AX3,'DATI del VERSAMENTO'!B9:E1008,4,FALSE),"gg/mm/aaaa"),4,1) -> 0 | H37: =MID(TEXT(VLOOKUP(AX5&"-"&AX3,'DATI del VERSAMENTO'!B9:E1008,4,FALSE),"gg/mm/aaaa"),5,1) -> 1 | J37: =MID(TEXT(VLOOKUP(AX5&"-"&AX3,'DATI del VERSAMENTO'!B9:E1008,4,FALSE),"gg/mm/aaaa"),7,1) -> 2 | K37: =MID(TEXT(VLOOKUP(AX5&"-"&AX3,'DATI del VERSAMENTO'!B9:E1008,4,FALSE),"gg/mm/aaaa"),8,1) -> 0 | M37: =MID(TEXT(VLOOKUP(AX5&"-"&AX3,'DATI del VERSAMENTO'!B9:E1008,4,FALSE),"gg/mm/aaaa"),9,1) -> 2 | N37: =MID(TEXT(VLOOKUP(AX5&"-"&AX3,'DATI del VERSAMENTO'!B9:E1008,4,FALSE),"gg/mm/aaaa"),10,1) -> 4 | O37: =VLOOKUP(VLOOKUP(AX5&"-"&AX3,'DATI del VERSAMENTO'!B9:U1008,20,FALSE),Tabelle!B4:O6,14,FALSE) -> 00001 | V37: =VLOOKUP(VLOOKUP(AX5&"-"&AX3,'DATI del VERSAMENTO'!B9:U1008,20,FALSE),Tabelle!B4:Q6,16,FALSE) -> 10000
E40: =CONCATENATE("nr. IBAN: ",VLOOKUP(VLOOKUP(AX5&"-"&AX3,'DATI del VERSAMENTO'!B9:Y1008,24,FALSE),Tabelle!B4:S6,18,FALSE)) -> nr. IBAN: IT12 A 12345 12345 123456789012
AX41: =AX5 -> 1
B43: Oscura
G44: ESTREMI VERSAMENTO | AV44: =CONTRIBUENTE!$G$13 -> 
G45: INTESTAZIONE
G46: AREA DESCRIZIONE
G47: IBAN
M52: =IF(B44=$F$53,TRUE,FALSE) -> FALSE | AL52: =CONTRIBUENTE!J36 -> 2000-01-01 | AR52: =VLOOKUP(AX5&"-"&AX3,'DATI del VERSAMENTO'!B9:E1008,4,FALSE) -> 2024-01-01
F53: Oscura | M53: =IF(B45=$F$53,TRUE,FALSE) -> FALSE | AL53: =CONTRIBUENTE!J43 -> 00:00:00
M54: =IF(B46=$F$53,TRUE,FALSE) -> FALSE | T54: =IF(ISERROR(AV55),"File danneggiato",IF(AF55=0,"File scaduto","")) ->  | AF54: File scaduto / INVERTITO | AR54: BIT INTEGRITA' | AV54: Integrità
M55: =IF(B47=$F$53,TRUE,FALSE) -> FALSE | AF55: =IF(CONTRIBUENTE!$H$138=1,0,1) -> 1 | AR55: 1 | AV55: =CONTRIBUENTE!K138 -> 4

Sheet Tabelle
B3: SIGLA | C3: Delega irrevocabile a | I3: Agenzia | N3: Prov. | O3: ABI | Q3: CAB | S3: IBAN
B4: B1 | C4: Nome Banca 1 / modifica sigla | I4: Nome Agenzia 1 | N4: XX | O4: 00001 | Q4: 10000 | S4: IT12 A 12345 12345 123456789012
B5: B2 | C5: Nome Banca 2 / modifica sigla | I5: Nome Agenzia 2 | N5: XX | O5: 00002 | Q5: 20000
B6: B3 | C6: Nome Banca 3 / modifica sigla | I6: Nome Agenzia 3 | N6: XX | O6: 00003 | Q6: 30000
C8: Personalizza tutti i campi liberi. | P8: Sequenza IBAN: | S8: IT12 A 12345 12345 123456789012 = 31 carat.
B12: Tabella CONTENZIOSO
B13: Descrizione | I13: Ufficio | K13: CAUSALE | U13: COD.
B14: Commiss. tributaria prov.le | G14: 1 | I14: ENTRATE | K14: IVA per acquisti intracomunitari (art.49 L.513/92) | U14: IN
B15: Commiss. tributaria reg.le | G15: 2 | I15: ENTRATE | K15: IVA per acquisti intra.i di mezzi di trasporto nuovi (art. 38 L.513/92) | U15: VT
B16: Commiss. tributaria centrale | G16: 3 | I16: ENTRATE | K16: Registrazione di atti giudiziari | U16: RG
B17: Corte d’ Appello | G17: 4 | I17: ENTRATE | K17: Registrazione di atti pubblici o privati | U17: RP
B18: Corte di Cassazione | G18: 5 | I18: ENTRATE | K18: Sanzioni pecuniarie in materia di imposte dirette ed indirette | U18: SZ
B19: Conciliazione giudiziale | G19: 6 | I19: ENTRATE | K19: Tributi autoliquidati collegati alla successione | U19: SA
B20: ---- Inserisci | G20: . | I20: Territorio | K20: Certificazione ipotecaria | U20: CR
I21: Territorio | K21: Depositi per rilascio certificati | U21: DR
I22: Territorio | K22: Ispezione ipotecaria | U22: IR
I23: Territorio | K23: Entrate demaniali | U23: ED
I24: Territorio | K24: Entrate patrimoniali | U24: EP
I25: Territorio | K25: Formalità ipotecaria | U25: TR
I26: Territorio | K26: Somme accertate Conservatorie | U26: MR
I27: ALTRI Enti | K27: Processi verbali/ordini di pagamento emessi da altri enti | U27: PA
K28: ---- Inserisci | U28: ..
K29: ---- Inserisci | U29: ..
B31: Tabella CODICI TRIBUTO | Q31: CONCESSIONARIO
B32: Descrizione dei pagamenti (principali) | N32: COD. | Q32: DI
B33: Imposta catastale | N33: 737T | Q33: Inserisci Provincia | U33: PV
B34: Imposta di bollo - tassa sui contratti di borsa | N34: 456T | Q34: MILANO | U34: MI
B35: Imposta di bollo su libri e registri - All. A, parte I, Art. 16, DPR 642/72 | N35: 458T | Q35: R O M A | U35: RO
B36: Imposta ipotecaria | N36: 649T | Q36: PALERMO | U36: PA
B37: Imposta registro per affitto fondi rustici | N37: 108T
B38: Imposta registro per atti, contratti verbali e denunce | N38: 109T
B39: Imposta registro per cessioni (contratti di locazione e affitti) | N39: 110T
B40: Imposta registro per contratti di locazione fabbricati - prima annualità | N40: 115T
B41: Imposta registro per contratti di locazione fabbricati - annualità successive | N41: 112T
B42: Imposta registro per contratti di locazione fabbricati - intero periodo | N42: 107T
B43: Imposta registro per proroghe (contratti di locazione e affitti) | N43: 114T
B44: Imposta registro per risoluzioni (contratti di locazione e affitti) | N44: 113T
B45: Imposta registro trasferimento fabbricati e relativi contratti preliminari | N45: 104T
B46: Imposta registro trasferimento terreni e relativi contratti preliminari | N46: 105T
B47: Imposta sostitutiva delle imposte di registro | N47: 460T
B48: Imposta sostitutiva INVIM L. 140/97 - Successioni | N48: 722T
B49: Imposta sul valore aggiunto - scambi interni | N49: 100T
B50: Imposta sulle assicurazioni - aumento aliquota - Erario | N50: 528T
B51: Imposta sulle assicurazioni - Erario | N51: 527T
B52: Imposta sulle assicurazioni derivanti da R.C. Auto - Province | N52: 529T
B53: Imposta sulle donazioni | N53: 005T
B54: Tassa ipotecaria | N54: 778T
B55: Tassa istruzione superiore (laurea e abilitazione professionale) | N55: 729T
B56: Sanzione pecuniaria abbonamenti alle radioaudizioni | N56: 680T
B57: Sanzione pecuniaria imposta di bollo | N57: 675T
B58: Sanzione pecuniaria imposta di registro | N58: 671T
B59: Sanzione pecuniaria imposta sugli spettacoli | N59: 677T
B60: Sanzione pecuniaria imposta sull’ INVIM | N60: 673T
B61: Sanzione pecuniaria imposta sulle assicurazioni private e contratti vitalizi | N61: 676T
B62: Sanzione pecuniaria imposte e tasse ipotecarie e catastali | N62: 674T
B63: Sanzione pecuniaria imposte sulle successioni e donazioni | N63: 672T
B64: Sanzione pecuniaria in materia di abbonamento televisione | N64: 681T
B65: Sanzione pecuniaria tasse sul possesso di autoveicoli | N65: 679T
B66: Sanzione pecuniaria tasse sulle Concessioni Governative | N66: 678T
B67: Sanzioni ammin.-multe inflitte dalle autorità giudiz. e ammin. | N67: 741T
B68: Sanzioni pecuniarie per altri tributi indiretti | N68: 682T
B69: Sanzioni pecuniarie in materia di abbonamento alla televisione | N69: 681T
B70: Concessione beni del demanio pubblico artistico storico | N70: 834T
B71: Concessioni di spiagge lacuali | N71: 832T
B72: Proventi dei beni del demanio marittimo | N72: 842T
B73: Contributo unificato di iscrizione al ruolo nei procedimenti | N73: 941T
B74: Proventi dei beni del demanio militare | N74: 840T
B75: Proventi delle utilizzazioni delle acque pubbliche | N75: 825T
B76: Redditi di beni immobili patrimoniali | N76: 811T
B77: Contributo unificato di iscrizione al ruolo nei procedimenti giurisdizionali | N77: 941T
B78: ---- Inserisci | N78: ....
B79: ---- Inserisci | N79: ....
B80: ---- Inserisci | N80: ....
B81: ---- Inserisci | N81: ....
B82: ---- Inserisci | N82: .... | U82: .
B86: BIT INTEGRITA' | F86: Integrità
B87: 1 | F87: =CONTRIBUENTE!K138 -> 4
